Department family,Entity,Date,Expense type,Expense area,Supplier,Transaction number,Amount,Description,Supplier Postcode
HMRC,HMRC,01/09/2023,Consultancy - P&C,CFO Transformation Programmes,MACE LTD,5100032525,"106,112.24",Newcastle Regional Centre. Professional Services - Project Support. July 23,EC2M 6XB
HMRC,HMRC,01/09/2023,Soft Licen Off shelf,CDIO - Core,INSIGHT DIRECT (UK) LTD,5100032535,"965,449.66",Soft Licen Off shelf,S9 2BU
HMRC,HMRC,01/09/2023,PROJECT Mandays Supp,Programme and Operational Delivery,EQUAL EXPERTS UK LTD,5100032539,"169,336.00",PROJECT Mandays Supp,AL1 5HE
HMRC,HMRC,01/09/2023,Physical Hosting,CDIO - Core,Crown Hosting Data Centres Ltd,5100032567,"88,751.12",Physical Hosting,SN13 9GB
HMRC,HMRC,01/09/2023,PROJECT Mandays Supp,Transformation DG & Programme Office,DELOITTE LLP (L),5100032570,"50,066.00",PROJECT Mandays Supp,MK9 1FD
HMRC,HMRC,01/09/2023,GovDept Serv(VAT Ex),Risk & Intelligence,FOREIGN COMMONWEALTH & DEVELOPMENT,5100032571,"60,047.66",GovDept Serv(VAT Ex),G75 8EA
HMRC,HMRC,01/09/2023,SW Lic Sup Off shlf,CDIO - Core,COMPUTACENTER (UK) LTD,5100032573,"90,263.18",SW Lic Sup Off shlf,AL10 9TW
HMRC,HMRC,01/09/2023,SW Lic Sup mngd Serv,CDIO - Core,COMPUTACENTER (UK) LTD,5100032575,"66,500.10",SW Lic Sup mngd Serv,AL10 9TW
HMRC,HMRC,01/09/2023,Physical Hosting,CDIO - Core,Crown Hosting Data Centres Ltd,5100032576,"58,388.89",Physical Hosting,SN13 9GB
HMRC,HMRC,01/09/2023,Construction fit out,CFO Transformation Programmes,BAM CONSTRUCTION LTD,5100032579,"50,814.27",Manchester Regional Centre. Construction & Office Fit Out. August 23,HP2 4FL
HMRC,HMRC,01/09/2023,Consultancy - P&C,CFO Transformation Programmes,MACE LTD,5100032584,"25,361.07",Newcastle Regional Centre. Professional Services - Project Support. June 23,EC2M 6XB
HMRC,HMRC,01/09/2023,PROJECT Mandays Supp,Transformation DG & Programme Office,ATOS IT SERVICES UK LTD,5100032585,"34,338.45",Project Development Mandays for Event Reporting,WC1V 6EA
HMRC,HMRC,01/09/2023,PROJECT Mandays HMRC,CDIO - Core,VERSION 1 SOLUTIONS LTD,5100032591,"67,786.62",PROJECT Mandays HMRC,B97 4DL
HMRC,HMRC,01/09/2023,Consultancy � IT,CDIO - Core,COGNIZANT,5100032597,"23,669.00",Consultancy � IT,W2 6BD
HMRC,HMRC,01/09/2023,PROJECT Mandays Supp,CDIO Transformation Programmes,IBM UNITED KINGDOM LTD,5100032598,"743,417.80",PROJECT Mandays Supp,SE1 9PZ
HMRC,HMRC,01/09/2023,PROJECT Mandays Supp,B&T Border Change Delivery,ACCENTURE (UK) LTD,5100032599,"402,007.67",Customs Declaration Service Contractor Costs,EC3M 3BD
HMRC,HMRC,01/09/2023,PROJECT Mandays Supp,Programme and Operational Delivery,EQUAL EXPERTS UK LTD,5100032618,"244,234.62",Inland Border Facility - Running Costs,AL1 5HE
HMRC,HMRC,01/09/2023,Research (VAT rec),Knowledge Analysis & Intelligence,BMG Research,5100032621,"87,167.50",Research Services ,B15 3BE
HMRC,HMRC,01/09/2023,PROJECT Mandays Supp,B&T Border Change Delivery,COGNIZANT,5100032623,"53,615.06",Trader Data 3rd party supplier DPS costs,W2 6BD
HMRC,HMRC,04/09/2023,Training costs,CDIO - Core,Collaboration Innovation Technology,1900291345,"45,097.45",Training costs,W1W 5DR
HMRC,HMRC,04/09/2023,Projects,Programme and Operational Delivery,Wincanton Group PLC,1900291348,"817,821.55",Inland Border Facility - Running Costs,SN14 0WT
HMRC,HMRC,04/09/2023,Projects,Programme and Operational Delivery,Wincanton Group PLC,1900291349,"276,195.55",Inland Border Facility - Running Costs,SN14 0WT
HMRC,HMRC,04/09/2023,PROJECT Mandays Supp,Transformation DG & Programme Office,ATOS IT SERVICES UK LTD,5100032668,"28,045.45",PROJECT Mandays Supp,WC1V 6EA
HMRC,HMRC,04/09/2023,Debt coll serv (DEL),Debt Management,TDX GROUP LTD,5100032682,"55,640.00",Debt coll serv (DEL),LS1 4AP
HMRC,HMRC,04/09/2023,Virtual Hosting,CDIO - Core,SAS SOFTWARE LTD,5100032684,"54,419.63",Virtual Hosting,SL7 2EB
HMRC,HMRC,04/09/2023,Cons ad imp (Ir VAT),Finance Planning & Performance,ALEXANDER MANN SOLUTIONS LTD,5100032690,"54,000.00",Cons ad imp (Ir VAT),EC2N 3AQ
HMRC,HMRC,04/09/2023,Ad campaign ser.,HMRC Communications,MANNING GOTTLIEB OMD A DIVISION OF,5100032785,"29,463.20",Marketing Services,SE1 0SW
HMRC,HMRC,04/09/2023,Consultancy - Market,HMRC Communications,MANNING GOTTLIEB OMD A DIVISION OF,5100032796,"45,537.98",Marketing services ,SE1 0SW
HMRC,HMRC,04/09/2023,Consultancy - P&C,CFO Transformation Programmes,Mott MacDonald,5100032808,"33,716.71",Newcastle Regional Centre. Professional Services - Project Support. August 23,SE1 9LZ
HMRC,HMRC,04/09/2023,Consultancy - P&C,CFO Transformation Programmes,Mott MacDonald,5100032809,"72,266.40",Newcastle Regional Centre. Professional Services - Project Support. July 23,SE1 9LZ
HMRC,HMRC,04/09/2023,Ad campaign ser.,HMRC Communications,MANNING GOTTLIEB OMD A DIVISION OF,5100032814,"99,788.92",Marketing Services,SE1 0SW
HMRC,HMRC,04/09/2023,Debt coll serv (DEL),Debt Management,TDX GROUP LTD,5100032871,"31,783.22",Debt coll serv (DEL),LS1 4AP
HMRC,HMRC,04/09/2023,PROJECT Mandays Supp,Transformation DG & Programme Office,ATOS IT SERVICES UK LTD,5100032872,"31,757.57",PROJECT Mandays Supp,WC1V 6EA
HMRC,HMRC,04/09/2023,Govt Commercial Org,Commercial Directorate,CABINET OFFICE,5100032901,"2,045,422.03",Govt Commercial Org,FY1 9JN
HMRC,HMRC,04/09/2023,Soft FM Services,Estates,SODEXO LTD,5100032904,"71,108.00",Soft FM Services,M50 2UE
HMRC,HMRC,04/09/2023,Soft FM Services,Estates,SODEXO LTD,5100032904,"436,806.30",Soft FM Services,M50 2UE
HMRC,HMRC,04/09/2023,Govt Commercial Org,Commercial Directorate,CABINET OFFICE,5100032905,"108,900.00",Govt Commercial Org,FY1 9JN
HMRC,HMRC,04/09/2023,Soft FM Services,Estates,SODEXO LTD,5100032906,"30,704.07",Soft FM Services,M50 2UE
HMRC,HMRC,04/09/2023,SW Lic Sup Off shlf,CDIO - Core,BOXXE LTD,5100032931,"77,760.00",SW Lic Sup Off shlf,YO31 7RE
HMRC,HMRC,04/09/2023,SW Lic Sup mngd Serv,CDIO - Core,ORACLE CORPORATION (UK) LTD,5100032933,"457,925.19",SW Lic Sup mngd Serv,RG6 1RA
HMRC,HMRC,04/09/2023,GovDept Serv(VAT Ex),Benefits & Credits Delivery,NATIONAL SAVINGS & INVESTMENTS,5100032936,"498,933.64",GovDept Serv(VAT Ex),SW1V 2QX
HMRC,HMRC,04/09/2023,GovDept Serv(VAT Ex),CSG Transformation,NATIONAL SAVINGS & INVESTMENTS,5100032937,"2,574,833.45",GovDept Serv(VAT Ex),SW1V 2QX
HMRC,HMRC,04/09/2023,PROJECT Mandays Supp,Transformation DG & Programme Office,DELOITTE LLP (L),5100032949,"529,347.15",PROJECT Mandays Supp,MK9 1FD
HMRC,HMRC,04/09/2023,PROJECT Mandays Supp,Programme and Operational Delivery,COGNIZANT,5100032955,"23,478.00",Inland Border Facility - Running Costs,W2 6BD
HMRC,HMRC,04/09/2023,Consultancy � IT,CDIO - Core,COGNIZANT,5100032957,"161,806.00",Consultancy � IT,W2 6BD
HMRC,HMRC,04/09/2023,Rent (Irrec VAT),Estates,Jones Lang LaSalle Property Acc,5100033028,"323,788.24",Rent (Irrec VAT),E14 5WQ
HMRC,HMRC,05/09/2023,Virtual Hosting and Infrastructure,CDIO - Core,Amazon Web Services UK,1900291462,"73,009.30",Virtual Hosting and Infrastructure,EC2A 2FA
HMRC,HMRC,05/09/2023,Project Development,CDIO - Core,CAPITA CONSULTING,1900291473,"23,531.00",Project Development,NE136DS
HMRC,HMRC,05/09/2023,Project Development,CDIO - Core,CAPITA CONSULTING,1900291474,"63,414.00",Project Development,NE136DS
HMRC,HMRC,05/09/2023,Project Development,CDIO - Core,CAPITA CONSULTING,1900291475,"58,515.00",Project Development,NE136DS
HMRC,HMRC,05/09/2023,Project Development,CDIO - Core,CAPITA CONSULTING,1900291481,"145,527.00",Project Development,NE136DS
HMRC,HMRC,05/09/2023,Virtual Hosting and Infrastructure,CDIO - Core,FUJITSU SERVICES LTD,1900291492,"32,168.14",Virtual Hosting and Infrastructure,WA3 6GD
HMRC,HMRC,05/09/2023,IT Software Licenses and Support,CDIO - Core,FUJITSU SERVICES LTD,1900291494,"1,165,591.24",IT Software Licenses and Support,WA3 6GD
HMRC,HMRC,05/09/2023,Physical Hosting and Infrastructure,CDIO - Core,FUJITSU SERVICES LTD,1900291532,"53,652.04",Physical Hosting and Infrastructure,WA3 6GD
HMRC,HMRC,05/09/2023,Physical Hosting and Infrastructure,CDIO - Core,FUJITSU SERVICES LTD,1900291533,"52,280.16",Physical Hosting and Infrastructure,WA3 6GD
HMRC,HMRC,05/09/2023,Physical Hosting and Infrastructure,CDIO - Core,FUJITSU SERVICES LTD,1900291534,"87,906.25",Physical Hosting and Infrastructure,WA3 6GD
HMRC,HMRC,05/09/2023,Virtual Hosting and Infrastructure,CDIO - Core,FUJITSU SERVICES LTD,1900291535,"250,627.41",Virtual Hosting and Infrastructure,WA3 6GD
HMRC,HMRC,05/09/2023,Physical Hosting and Infrastructure,CDIO - Core,FUJITSU SERVICES LTD,1900291536,"480,941.39",Physical Hosting and Infrastructure,WA3 6GD
HMRC,HMRC,05/09/2023,Physical Hosting and Infrastructure,CDIO - Core,FUJITSU SERVICES LTD,1900291547,"151,181.89",Physical Hosting and Infrastructure,WA3 6GD
HMRC,HMRC,05/09/2023,Physical Hosting and Infrastructure,CDIO - Core,FUJITSU SERVICES LTD,1900291548,"38,751.22",Physical Hosting and Infrastructure,WA3 6GD
HMRC,HMRC,05/09/2023,System Maintenance,CDIO - Core,CAPGEMINI,1900291565,"20,868.72",System Maintenance,TF3 3BD
HMRC,HMRC,05/09/2023,Contin Labor Run,HMRC Security,BSI CYBERSECURITY AND INFORMATION,5100032589,"29,700.00",Contin Labor Run,MK5 8PP
HMRC,HMRC,05/09/2023,PROJECT Mandays Supp,Transformation DG & Programme Office,ATOS IT SERVICES UK LTD,5100032970,"26,016.22",PROJECT Mandays Supp,WC1V 6EA
HMRC,HMRC,05/09/2023,Training/Tuition/Edu,CDIO - Core,Phoenix Software,5100032976,"19,297.18",Training/Tuition/Edu,YO42 1NS
HMRC,HMRC,05/09/2023,Training/Tuition/Edu,CDIO - Core,Phoenix Software,5100032976,"96,485.90",Training/Tuition/Edu,YO42 1NS
HMRC,HMRC,05/09/2023,Desktop Managed Serv,PDC Customer Strategy & Tax Design,ATOS IT SERVICES UK LTD,5100032978,"24,499.69",Software Build/Test,WC1V 6EA
HMRC,HMRC,05/09/2023,Consultancy � IT,Transformation DG & Programme Office,COGNIZANT,5100032985,"120,894.00",Consultancy � IT,W2 6BD
HMRC,HMRC,05/09/2023,Research (VAT rec),Knowledge Analysis & Intelligence,IPSOS (market research) Ltd,5100033002,"22,329.00",Research Services ,SE1 1PY
HMRC,HMRC,05/09/2023,Consultancy � IT,Transformation DG & Programme Office,Coforge,5100033003,"82,480.00",Consultancy � IT,EC3R 7QQ
HMRC,HMRC,05/09/2023,PROJECT Mandays Supp,Programme and Operational Delivery,ATOS IT SERVICES UK LTD,5100033009,"64,423.60",PROJECT Mandays Supp,WC1V 6EA
HMRC,HMRC,05/09/2023,PROJECT Mandays Supp,Programme and Operational Delivery,ATOS IT SERVICES UK LTD,5100033009,"204,770.08",PROJECT Mandays Supp,WC1V 6EA
HMRC,HMRC,05/09/2023,Consultancy � IT,CDIO - Core,Coforge,5100033015,"79,590.00",Consultancy � IT,EC3R 7QQ
HMRC,HMRC,05/09/2023,PROJECT Mandays Supp,B&T Border Change Delivery,ATOS IT SERVICES UK LTD,5100033034,"38,085.00",Trader Data 3rd party supplier daily testing costs,WC1V 6EA
HMRC,HMRC,05/09/2023,Employee education,CDIO - Core,CSL - KPMG LLP,5100033040,"55,994.77",Employee education,E14 5GL
HMRC,HMRC,05/09/2023,PROJECT Mandays HMRC,CDIO Transformation Programmes,FUJITSU SERVICES LTD,5100033042,"72,155.27",PROJECT Mandays HMRC,WA3 6GD
HMRC,HMRC,05/09/2023,PROJECT Mandays Supp,Transformation DG & Programme Office,ACCENTURE (UK) LTD,5100033051,"262,500.00",NPS Disaggregation Delivery ,EC3M 3BD
HMRC,HMRC,05/09/2023,Soft Licen Off shelf,CDIO - Core,BOXXE LTD,5100033186,"623,045.40",Soft Licen Off shelf,YO31 7RE
HMRC,HMRC,05/09/2023,Govt Commercial Org,Commercial Directorate,CABINET OFFICE,5100033197,"27,200.00",Govt Commercial Org,FY1 9JN
HMRC,HMRC,05/09/2023,Research (VAT rec),Knowledge Analysis & Intelligence,KANTAR PUBLIC UK LTD,5100033199,"26,248.02",Research Services ,SW1P 3JA
HMRC,HMRC,05/09/2023,Mail/pickup/del serv,Operational Excellence & Output Mgmt,Whistl Ltd,5100033202,"40,050.33",Mail/pickup/del serv,SL7 1TB
HMRC,HMRC,05/09/2023,PROJECT Mandays Supp,CCG Transformation Programmes,ATOS IT SERVICES UK LTD,5100033203,"65,809.67",PROJECT Mandays Supp,WC1V 6EA
HMRC,HMRC,05/09/2023,Contact Platform Ser,CDIO - Core,CAPITA CUSTOMER MANAGEMENT LTD,5100033228,"111,116.32",Contact Platform Ser,DL1 9HN
HMRC,HMRC,05/09/2023,PROJECT Mandays Supp,Transformation DG & Programme Office,ATOS IT SERVICES UK LTD,5100033238,"36,084.57",PROJECT Mandays Supp,WC1V 6EA
HMRC,HMRC,06/09/2023,System Maintenance,CDIO - Core,ACCENTURE (UK) LTD,1900291579,"556,134.43",System Maintenance,EC3M 3BD
HMRC,HMRC,06/09/2023,System Maintenance,CDIO - Core,CAPGEMINI,1900291580,"53,898.38",System Maintenance,TF3 3BD
HMRC,HMRC,06/09/2023,System Maintenance,CDIO - Core,CAPGEMINI,1900291581,"77,121.41",System Maintenance,TF3 3BD
HMRC,HMRC,06/09/2023,System Maintenance,CDIO - Core,CAPGEMINI,1900291582,"28,800.36",System Maintenance,TF3 3BD
HMRC,HMRC,06/09/2023,System Maintenance,CDIO - Core,CAPGEMINI,1900291584,"1,545,199.78",System Maintenance,TF3 3BD
HMRC,HMRC,06/09/2023,System Maintenance,CDIO - Core,CAPGEMINI,1900291585,"182,749.25",System Maintenance,TF3 3BD
HMRC,HMRC,06/09/2023,System Maintenance,CDIO - Core,CAPGEMINI,1900291588,"27,302.71",System Maintenance,TF3 3BD
HMRC,HMRC,06/09/2023,System Maintenance,CDIO - Core,CAPGEMINI,1900291589,"32,014.91",System Maintenance,TF3 3BD
HMRC,HMRC,06/09/2023,System Maintenance,CDIO - Core,CAPGEMINI,1900291590,"31,976.61",System Maintenance,TF3 3BD
HMRC,HMRC,06/09/2023,Physical Hosting and Infrastructure,CDIO - Core,FUJITSU SERVICES LTD,1900291591,"355,540.83",Physical Hosting and Infrastructure,WA3 6GD
HMRC,HMRC,06/09/2023,Virtual Hosting and Infrastructure,CDIO - Core,FUJITSU SERVICES LTD,1900291592,"149,397.50",Virtual Hosting and Infrastructure,WA3 6GD
HMRC,HMRC,06/09/2023,Physical Hosting and Infrastructure,CDIO - Core,FUJITSU SERVICES LTD,1900291593,"189,510.36",Physical Hosting and Infrastructure,WA3 6GD
HMRC,HMRC,06/09/2023,Virtual Hosting and Infrastructure,CDIO - Core,FUJITSU SERVICES LTD,1900291594,"342,003.38",Virtual Hosting and Infrastructure,WA3 6GD
HMRC,HMRC,06/09/2023,Physical Hosting and Infrastructure,CDIO - Core,FUJITSU SERVICES LTD,1900291596,"587,373.97",Physical Hosting and Infrastructure,WA3 6GD
HMRC,HMRC,06/09/2023,Physical Hosting and Infrastructure,CDIO - Core,FUJITSU SERVICES LTD,1900291615,"49,171.92",Physical Hosting and Infrastructure,WA3 6GD
HMRC,HMRC,06/09/2023,Physical Hosting and Infrastructure,CDIO - Core,FUJITSU SERVICES LTD,1900291619,"45,405.44",Physical Hosting and Infrastructure,WA3 6GD
HMRC,HMRC,06/09/2023,Physical Hosting and Infrastructure,CDIO - Core,FUJITSU SERVICES LTD,1900291622,"66,817.09",Physical Hosting and Infrastructure,WA3 6GD
HMRC,HMRC,06/09/2023,Virtual Hosting and Infrastructure,CDIO - Core,FUJITSU SERVICES LTD,1900291624,"41,590.64",Virtual Hosting and Infrastructure,WA3 6GD
HMRC,HMRC,06/09/2023,Contracted Services,Operational Excellence & Output Mgmt,COMMUNISIS UK LTD,1900292501,"32,499.24",Contracted Services,LS15 8AH
HMRC,HMRC,06/09/2023,Project Development,CDIO - Core,ATOS IT SERVICES UK LTD,1900292507,"5,230,264.98",Project Development,WC1V 6EA
HMRC,HMRC,06/09/2023,Accommodation Security Services,Estates,Mitie Limited,1900292520,"76,388.36",Accommodation Security Services,SE1 9SG
HMRC,HMRC,06/09/2023,Accommodation Security Services,Estates,Mitie Limited,1900292521,"62,752.93",Accommodation Security Services,SE1 9SG
HMRC,HMRC,06/09/2023,Accommodation Security Services,Estates,Mitie Limited,1900292523,"66,331.37",Accommodation Security Services,SE1 9SG
HMRC,HMRC,06/09/2023,Accommodation Security Services,Estates,Mitie Limited,1900292524,"24,841.43",Accommodation Security Services,SE1 9SG
HMRC,HMRC,06/09/2023,Accommodation Security Services,Estates,Mitie Limited,1900292525,"67,168.05",Accommodation Security Services,SE1 9SG
HMRC,HMRC,06/09/2023,Accommodation Security Services,Estates,Mitie Limited,1900292528,"35,161.32",Accommodation Security Services,SE1 9SG
HMRC,HMRC,06/09/2023,Accommodation Security Services,Estates,Mitie Limited,1900292529,"26,779.17",Accommodation Security Services,SE1 9SG
HMRC,HMRC,06/09/2023,Accommodation Security Services,Estates,Mitie Limited,1900292535,"36,941.32",Accommodation Security Services,SE1 9SG
HMRC,HMRC,06/09/2023,Accommodation Security Services,Estates,Mitie Limited,1900292536,"74,121.73",Accommodation Security Services,SE1 9SG
HMRC,HMRC,06/09/2023,Accommodation Security Services,Estates,Mitie Limited,1900292537,"23,914.80",Accommodation Security Services,SE1 9SG
HMRC,HMRC,06/09/2023,Accommodation Security Services,Estates,Mitie Limited,1900292538,"77,663.57",Accommodation Security Services,SE1 9SG
HMRC,HMRC,06/09/2023,Accommodation Security Services,Estates,Mitie Limited,1900292539,"82,434.94",Accommodation Security Services,SE1 9SG
HMRC,HMRC,06/09/2023,Accommodation Security Services,Estates,Mitie Limited,1900292540,"79,196.22",Accommodation Security Services,SE1 9SG
HMRC,HMRC,06/09/2023,Accommodation Security Services,Estates,Mitie Limited,1900292543,"51,972.36",Accommodation Security Services,SE1 9SG
HMRC,HMRC,06/09/2023,Accommodation Security Services,Estates,Mitie Limited,1900292544,"45,982.01",Accommodation Security Services,SE1 9SG
HMRC,HMRC,06/09/2023,Accommodation Security Services,Estates,Mitie Limited,1900292546,"69,600.09",Accommodation Security Services,SE1 9SG
HMRC,HMRC,06/09/2023,Accommodation Security Services,Estates,Mitie Limited,1900292547,"23,966.15",Accommodation Security Services,SE1 9SG
HMRC,HMRC,06/09/2023,Accommodation Security Services,Estates,Mitie Limited,1900292549,"41,180.13",Accommodation Security Services,SE1 9SG
HMRC,HMRC,06/09/2023,Accommodation Security Services,Estates,Mitie Limited,1900292550,"30,656.49",Accommodation Security Services,SE1 9SG
HMRC,HMRC,06/09/2023,Virtual Hosting and Infrastructure,CDIO - Core,FUJITSU SERVICES LTD,1900292562,"81,747.46",Virtual Hosting and Infrastructure,WA3 6GD
HMRC,HMRC,06/09/2023,Physical Hosting and Infrastructure,CDIO - Core,FUJITSU SERVICES LTD,1900292564,"268,551.25",Physical Hosting and Infrastructure,WA3 6GD
HMRC,HMRC,06/09/2023,System Maintenance,CDIO - Core,CAPGEMINI,1900292581,"340,115.37",System Maintenance,TF3 3BD
HMRC,HMRC,06/09/2023,System Maintenance,CDIO - Core,CAPGEMINI,1900292582,"40,225.11",System Maintenance,TF3 3BD
HMRC,HMRC,06/09/2023,Project Development,CDIO - Core,CAPGEMINI,1900292656,"26,502.58",Project Development,TF3 3BD
HMRC,HMRC,06/09/2023,PROJECT Mandays Supp,Transformation HMRC Change Portfolio,CGI IT UK LTD,5100033261,"23,294.25",PROJECT Mandays Supp,CF31 9AP
HMRC,HMRC,06/09/2023,PROJECT Mandays Supp,CCG Transformation Programmes,SAS SOFTWARE LTD,5100033266,"186,313.85",PROJECT Mandays Supp,SL7 2EB
HMRC,HMRC,06/09/2023,Consultancy � IT,Transformation DG & Programme Office,COGNIZANT,5100033282,"90,405.00",Consultancy � IT,W2 6BD
HMRC,HMRC,06/09/2023,Consultancy � IT,Transformation DG & Programme Office,COGNIZANT,5100033283,"42,036.00",Consultancy � IT,W2 6BD
HMRC,HMRC,06/09/2023,Consultancy � IT,Transformation DG & Programme Office,COGNIZANT,5100033284,"115,142.00",Consultancy � IT,W2 6BD
HMRC,HMRC,06/09/2023,PROJECT Mandays Supp,Transformation DG & Programme Office,COGNIZANT,5100033286,"64,932.00",PROJECT Mandays Supp,W2 6BD
HMRC,HMRC,06/09/2023,Consultancy � IT,CCG Transformation Programmes,COGNIZANT,5100033287,"166,963.50",Consultancy � IT,W2 6BD
HMRC,HMRC,06/09/2023,Consultancy � IT,CDIO - Core,COGNIZANT,5100033288,"21,619.00",Consultancy � IT,W2 6BD
HMRC,HMRC,06/09/2023,Consultancy � IT,CDIO - Core,COGNIZANT,5100033299,"21,619.00",Consultancy � IT,W2 6BD
HMRC,HMRC,06/09/2023,Projects VAT irrec,Customs Policy and Strategy,ENGINE PARTNERS UK LLP,5100033308,"211,248.00",Projects VAT irrec,W1W 7RT
HMRC,HMRC,06/09/2023,PROJECT Mandays Supp,Programme and Operational Delivery,FUJITSU SERVICES LTD,5100033324,"113,819.37",PROJECT Mandays Supp,WA3 6GD
HMRC,HMRC,06/09/2023,PROJECT Mandays Supp,CDIO - Core,CGI IT UK LTD,5100033330,"22,185.00",PROJECT Mandays Supp,CF31 9AP
HMRC,HMRC,06/09/2023,Contin Labor Build,Programme and Operational Delivery,EQUAL EXPERTS UK LTD,5100033333,"45,253.13",Contin Labor Build,AL1 5HE
HMRC,HMRC,06/09/2023,PROJECT Mandays Supp,Transformation DG & Programme Office,ACCENTURE (UK) LTD,5100033347,"141,000.00",PROJECT Mandays Supp,EC3M 3BD
HMRC,HMRC,06/09/2023,PROJECT Mandays HMRC,Group Controller,CAPGEMINI,5100033353,"28,400.08",Capgemini man days for the design build test and delivery of the Multi-year Planning report functionality for FSP,TF3 3BD
HMRC,HMRC,06/09/2023,PROJECT Mandays Supp,CDIO - Core,CAPGEMINI,5100033367,"28,292.11",PROJECT Mandays Supp,TF3 3BD
HMRC,HMRC,06/09/2023,PROJECT Mandays Supp,CDIO - Core,CAPGEMINI,5100033371,"149,629.57",PROJECT Mandays Supp,TF3 3BD
HMRC,HMRC,06/09/2023,PROJECT Mandays Supp,Transformation DG & Programme Office,CAPGEMINI,5100033372,"51,119.61",PROJECT Mandays Supp,TF3 3BD
HMRC,HMRC,06/09/2023,PROJECT Mandays Supp,Transformation DG & Programme Office,CAPGEMINI,5100033373,"39,630.06",PROJECT Mandays Supp,TF3 3BD
HMRC,HMRC,06/09/2023,Contin Labor Build,Programme and Operational Delivery,CAPGEMINI,5100033377,"48,803.52",Contin Labor Build,TF3 3BD
HMRC,HMRC,06/09/2023,Forensic Services,Fraud Investigation Service,EUROFINS FORENSIC SERVICES LTD,5100033393,"91,232.00",Forensic Services,WV9 5GB
HMRC,HMRC,06/09/2023,Disposal Seized Gds,Fraud Investigation Service,ADLER AND ALLAN LTD,5100033396,"39,974.68",Disposal Seized Gds,HG1 1HQ
HMRC,HMRC,06/09/2023,PROJECT Mandays Supp,CDIO - Core,SYNYEGA LTD,5100033399,"154,000.00",PROJECT Mandays Supp,BL9 7HR
HMRC,HMRC,06/09/2023,Virtual Hosting,CDIO - Core,KYNDRYL UK LTD,5100033400,"229,621.00",Virtual Hosting,EC2M 2AT
HMRC,HMRC,06/09/2023,PROJECT Mandays HMRC,Operational Excellence & Output Mgmt,CAPGEMINI,5100033550,"46,067.04",PROJECT Mandays HMRC,TF3 3BD
HMRC,HMRC,06/09/2023,Project support,CDIO - Core,CAPGEMINI,5100033555,"252,637.60",Project support,TF3 3BD
HMRC,HMRC,06/09/2023,Rent (Irrec VAT),Estates,Workman Holding Account,5100033556,"306,404.35",Rent (Irrec VAT),EC2V 6EE
HMRC,HMRC,06/09/2023,Rent (Irrec VAT),Estates,Workman Holding Account,5100033556,"970,280.45",Rent (Irrec VAT),EC2V 6EE
HMRC,HMRC,06/09/2023,Dilapidations,Estates,Elite Cask Limited t/a Legalinx Ltd,5100033564,"68,000.00",Dilapidations,EC4Y 0AB
HMRC,HMRC,06/09/2023,Dilapidations,Estates,Elite Cask Limited t/a Legalinx Ltd,5100033564,"1,632,000.00",Dilapidations,EC4Y 0AB
HMRC,HMRC,06/09/2023,PROJECT Mandays Supp,CDIO Transformation Programmes,CAPGEMINI,5100033566,"76,650.39",PROJECT Mandays Supp,TF3 3BD
HMRC,HMRC,06/09/2023,Rent (Irrec VAT),Estates,Workman Holding Account,5100033571,"142,993.51",Rent (Irrec VAT),EC2V 6EE
HMRC,HMRC,06/09/2023,Rent (Irrec VAT),Estates,Workman Holding Account,5100033571,"651,414.89",Rent (Irrec VAT),EC2V 6EE
HMRC,HMRC,06/09/2023,Rent (Irrec VAT),Estates,Workman Holding Account,5100033574,"514,539.24",Rent (Irrec VAT),EC2V 6EE
HMRC,HMRC,06/09/2023,Rent (Irrec VAT),Estates,Workman Holding Account,5100033574,"771,808.86",Rent (Irrec VAT),EC2V 6EE
HMRC,HMRC,06/09/2023,PROJECT Mandays Supp,CDIO Transformation Programmes,CAPGEMINI,5100033586,"51,244.39",PROJECT Mandays Supp,TF3 3BD
HMRC,HMRC,06/09/2023,Prop. Man. (Ir VAT),Estates,COLLIERS INT PROPERTY CONSULT LTD,5100033590,"2,241.62",Prop. Man. (Ir VAT),W1U 7GA
HMRC,HMRC,06/09/2023,Prop. Man. (Ir VAT),Estates,COLLIERS INT PROPERTY CONSULT LTD,5100033590,"7,098.46",Prop. Man. (Ir VAT),W1U 7GA
HMRC,HMRC,06/09/2023,Rent (Irrec VAT),Estates,COLLIERS INT PROPERTY CONSULT LTD,5100033590,"200,592.00",Rent (Irrec VAT),W1U 7GA
HMRC,HMRC,06/09/2023,Rent (Irrec VAT),Estates,COLLIERS INT PROPERTY CONSULT LTD,5100033590,"635,208.00",Rent (Irrec VAT),W1U 7GA
HMRC,HMRC,06/09/2023,PROJECT Mandays Supp,CDIO - Core,CAPGEMINI,5100033591,"48,646.36",PROJECT Mandays Supp,TF3 3BD
HMRC,HMRC,06/09/2023,Minor Wrks Rec VAT,Estates,BELLROCK PROPERTY & FACILITIES,5100033598,"35,189.55",Minor Wrks Rec VAT,LE1 6LP
HMRC,HMRC,06/09/2023,Minor Wrks Rec VAT,Estates,BELLROCK PROPERTY & FACILITIES,5100033601,"28,589.55",Minor Wrks Rec VAT,LE1 6LP
HMRC,HMRC,06/09/2023,Facilities Mngmnt,Estates,BELLROCK PROPERTY & FACILITIES,5100033603,"107,085.00",Facilities Mngmnt,LE1 6LP
HMRC,HMRC,06/09/2023,OHS,HR,Duradiamond Healthcare LTD,5100033608,"163,749.24",Occupational Health Services,TN22 1QL
HMRC,HMRC,06/09/2023,PROJECT Mandays Supp,Transformation DG & Programme Office,CAPGEMINI,5100033626,"272,110.30",Project Development Mandays for Pension Scheme Report,TF3 3BD
HMRC,HMRC,06/09/2023,Events management,Fraud Investigation Service,THINK DIFFERENT EVENTS LTD,5100033627,"28,000.00",Events management,G1 4DF
HMRC,HMRC,06/09/2023,PROJECT Mandays Supp,CDIO - Core,EQUAL EXPERTS UK LTD,5100033630,"207,741.50",PROJECT Mandays Supp,AL1 5HE
HMRC,HMRC,06/09/2023,Rent (Irrec VAT),Estates,Workman Holding Account,5100033633,"262,635.24",Rent (Irrec VAT),EC2V 6EE
HMRC,HMRC,06/09/2023,Rent (Irrec VAT),Estates,Workman Holding Account,5100033633,"410,788.44",Rent (Irrec VAT),EC2V 6EE
HMRC,HMRC,06/09/2023,Services waste,Estates,IRON MOUNTAIN UK PLC,5100033636,"24,799.90",Services waste,EH54 5DL
HMRC,HMRC,06/09/2023,PROJECT Mandays Supp,Programme and Operational Delivery,CAPGEMINI,5100033638,"22,529.33",PROJECT Mandays Supp,TF3 3BD
HMRC,HMRC,06/09/2023,Physical Hosting,CDIO Transformation Programmes,Crown Hosting Data Centres Ltd,5100033640,"58,388.89",Physical Hosting,SN13 9GB
HMRC,HMRC,06/09/2023,PROJECT Mandays Supp,Estates,FUJITSU SERVICES LTD,5100033652,"58,598.62",Project costs,WA3 6GD
HMRC,HMRC,06/09/2023,PROJECT Mandays Supp,CDIO - Core,CAPGEMINI,5100033663,"20,907.06",PROJECT Mandays Supp,TF3 3BD
HMRC,HMRC,06/09/2023,PROJECT Mandays Supp,CDIO - Core,CAPGEMINI,5100033665,"32,204.93",PROJECT Mandays Supp,TF3 3BD
HMRC,HMRC,07/09/2023,Business Continuity & Disaster Recovery,CDIO - Core,FUJITSU SERVICES LTD,1900294748,"45,583.69",Business Continuity & Disaster Recovery,WA3 6GD
HMRC,HMRC,07/09/2023,Physical Hosting and Infrastructure,CDIO - Core,FUJITSU SERVICES LTD,1900294751,"40,033.17",Physical Hosting and Infrastructure,WA3 6GD
HMRC,HMRC,07/09/2023,Contracted Services,Operational Excellence & Output Mgmt,COMMUNISIS UK LTD,1900294764,"23,071.56",Contracted Services,LS15 8AH
HMRC,HMRC,07/09/2023,I.T.-Hardware Maintenance,CDIO - Core,FUJITSU SERVICES LTD,1900294778,"1,413,029.58",I.T.-Hardware Maintenance,WA3 6GD
HMRC,HMRC,07/09/2023,IT Software Licenses and Support,CDIO - Core,FUJITSU SERVICES LTD,1900294781,"433,734.38",IT Software Licenses and Support,WA3 6GD
HMRC,HMRC,07/09/2023,Virtual Hosting and Infrastructure,CDIO - Core,FUJITSU SERVICES LTD,1900294782,"91,751.04",Virtual Hosting and Infrastructure,WA3 6GD
HMRC,HMRC,07/09/2023,Physical Hosting and Infrastructure,CDIO - Core,FUJITSU SERVICES LTD,1900294783,"355,540.83",Physical Hosting and Infrastructure,WA3 6GD
HMRC,HMRC,07/09/2023,System Maintenance,CDIO - Core,FUJITSU SERVICES LTD,1900294784,"188,128.33",System Maintenance,WA3 6GD
HMRC,HMRC,07/09/2023,Physical Hosting and Infrastructure,CDIO - Core,FUJITSU SERVICES LTD,1900294785,"847,555.74",Physical Hosting and Infrastructure,WA3 6GD
HMRC,HMRC,07/09/2023,Physical Hosting and Infrastructure,CDIO - Core,FUJITSU SERVICES LTD,1900294786,"97,489.79",Physical Hosting and Infrastructure,WA3 6GD
HMRC,HMRC,07/09/2023,IT Software Licenses and Support,CDIO - Core,FUJITSU SERVICES LTD,1900294787,"292,946.53",IT Software Licenses and Support,WA3 6GD
HMRC,HMRC,07/09/2023,Contracted Services,Operational Excellence & Output Mgmt,COMMUNISIS UK LTD,1900294809,"609,991.46",Contracted Services,LS15 8AH
HMRC,HMRC,07/09/2023,Physical Hosting and Infrastructure,CDIO - Core,FUJITSU SERVICES LTD,1900294816,"198,936.18",Physical Hosting and Infrastructure,WA3 6GD
HMRC,HMRC,07/09/2023,Physical Hosting and Infrastructure,CDIO - Core,FUJITSU SERVICES LTD,1900294818,"629,442.53",Physical Hosting and Infrastructure,WA3 6GD
HMRC,HMRC,07/09/2023,Virtual Hosting and Infrastructure,CDIO - Core,FUJITSU SERVICES LTD,1900294819,"786,901.53",Virtual Hosting and Infrastructure,WA3 6GD
HMRC,HMRC,07/09/2023,Virtual Hosting and Infrastructure,CDIO - Core,FUJITSU SERVICES LTD,1900294821,"126,640.42",Virtual Hosting and Infrastructure,WA3 6GD
HMRC,HMRC,07/09/2023,System Maintenance,CDIO - Core,CAPGEMINI,1900294824,"711,998.81",System Maintenance,TF3 3BD
HMRC,HMRC,07/09/2023,System Maintenance,CDIO - Core,CAPGEMINI,1900294826,"38,443.85",System Maintenance,TF3 3BD
HMRC,HMRC,07/09/2023,System Maintenance,CDIO - Core,CAPGEMINI,1900294828,"282,156.71",System Maintenance,TF3 3BD
HMRC,HMRC,07/09/2023,System Maintenance,CDIO - Core,CAPGEMINI,1900294829,"26,867.52",System Maintenance,TF3 3BD
HMRC,HMRC,07/09/2023,System Maintenance,CDIO - Core,CAPGEMINI,1900294830,"105,574.13",System Maintenance,TF3 3BD
HMRC,HMRC,07/09/2023,SW Lic Sup mngd Serv,CDIO - Core,BYTES SOFTWARE SERVICES LTD,5100024048,"353,520.04",SW Lic Sup mngd Serv,KT22 7TW
HMRC,HMRC,07/09/2023,SW Lic Sup mngd Serv,CDIO - Core,BYTES SOFTWARE SERVICES LTD,5100027642,"-1,060,560.20",SW Lic Sup mngd Serv,KT22 7TW
HMRC,HMRC,07/09/2023,PROJECT Mandays Supp,CDIO - Core,BYTES SOFTWARE SERVICES LTD,5100028883,"123,878.00",PROJECT Mandays Supp,KT22 7TW
HMRC,HMRC,07/09/2023,Soft Licen Integral,CDIO - Core,BYTES SOFTWARE SERVICES LTD,5100030068,"126,393.77",Soft Licen Integral,KT22 7TW
HMRC,HMRC,07/09/2023,Soft Licen Off shelf,CDIO - Core,BYTES SOFTWARE SERVICES LTD,5100030589,"133,056.00",Soft Licen Off shelf,KT22 7TW
HMRC,HMRC,07/09/2023,Soft Licen Off shelf,CDIO - Core,BYTES SOFTWARE SERVICES LTD,5100030592,"165,071.06",Soft Licen Off shelf,KT22 7TW
HMRC,HMRC,07/09/2023,SW Lic Sup Off shlf,CDIO - Core,BYTES SOFTWARE SERVICES LTD,5100032932,"49,323.24",SW Lic Sup Off shlf,KT22 7TW
HMRC,HMRC,07/09/2023,Software Licence Ren,CDIO - Core,BYTES SOFTWARE SERVICES LTD,5100033671,"678,087.36",Software Licence Ren,KT22 7TW
HMRC,HMRC,07/09/2023,PROJECT Mandays Supp,CDIO - Core,CAPGEMINI,5100033674,"87,170.49",PROJECT Mandays Supp,TF3 3BD
HMRC,HMRC,07/09/2023,PROJECT Mandays Supp,CDIO - Core,CAPGEMINI,5100033675,"67,833.43",PROJECT Mandays Supp,TF3 3BD
HMRC,HMRC,07/09/2023,PROJECT Mandays Supp,Programme and Operational Delivery,CAPGEMINI,5100033687,"51,802.62",PROJECT Mandays Supp,TF3 3BD
HMRC,HMRC,07/09/2023,PROJECT Mandays Supp,Programme and Operational Delivery,CAPGEMINI,5100033689,"155,101.52",PROJECT Mandays Supp,TF3 3BD
HMRC,HMRC,07/09/2023,VOA,Wealthy & Mid-sized Business Compliance,VALUATION OFFICE AGENCY,5100033690,"600,000.00",Monthly payment to Valuation Office for Inheritance Tax and Capital Gains Tax Searches ,W1D 5BU
HMRC,HMRC,07/09/2023,PROJECT Mandays Supp,Programme and Operational Delivery,ATOS IT SERVICES UK LTD,5100033691,"32,095.00",PROJECT Mandays Supp,WC1V 6EA
HMRC,HMRC,07/09/2023,PROJECT Mandays Supp,Programme and Operational Delivery,ATOS IT SERVICES UK LTD,5100033693,"29,010.00",PROJECT Mandays Supp,WC1V 6EA
HMRC,HMRC,07/09/2023,PROJECT Mandays Supp,CDIO - Core,CAPGEMINI,5100033694,"31,122.68",PROJECT Mandays Supp,TF3 3BD
HMRC,HMRC,07/09/2023,PROJECT Mandays Supp,B&T Border Change Delivery,SPECIALIST COMPUTER CTR,5100033707,"117,712.07",Customs Declaration Service Contractor Costs,B11 2LE
HMRC,HMRC,07/09/2023,PROJECT Mandays Supp,B&T Border Change Delivery,SPECIALIST COMPUTER CTR,5100033711,"100,924.40",Customs Declaration Service Contractor Costs,B11 2LE
HMRC,HMRC,07/09/2023,PROJECT Mandays Supp,Programme and Operational Delivery,CAPGEMINI,5100033712,"221,263.19",PROJECT Mandays Supp,TF3 3BD
HMRC,HMRC,07/09/2023,Contin Labor Build,B&T Border Change Delivery,ATOS IT SERVICES UK LTD,5100033713,"48,359.00",Contin Labor Build,WC1V 6EA
HMRC,HMRC,07/09/2023,PROJECT Mandays Supp,Transformation DG & Programme Office,CAPGEMINI,5100033726,"44,716.30",Integrate CDCS into Adept for Debt Data,TF3 3BD
HMRC,HMRC,07/09/2023,PROJECT Mandays Supp,Transformation DG & Programme Office,CAPGEMINI,5100033728,"272,857.32",Debt Management 0007,TF3 3BD
HMRC,HMRC,07/09/2023,Facilities Mngmnt,Estates,SERVEST GROUP LTD,5100033732,"7,830.31",Facilities Mngmnt,IP28 6LG
HMRC,HMRC,07/09/2023,Facilities Mngmnt,Estates,SERVEST GROUP LTD,5100033732,"48,100.44",Facilities Mngmnt,IP28 6LG
HMRC,HMRC,07/09/2023,SW Lic Sup Off shlf,CDIO - Core,BYTES SOFTWARE SERVICES LTD,5100033741,"-273,646.69",SW Lic Sup Off shlf,KT22 7TW
HMRC,HMRC,07/09/2023,Contact Platform Ser,CDIO - Core,CAPGEMINI,5100033742,"114,401.80",Contact Platform Ser,TF3 3BD
HMRC,HMRC,07/09/2023,PROJECT Mandays Supp,Transformation Making Tax Digital,CAPGEMINI,5100033744,"505,685.31",PROJECT Mandays HMRC,TF3 3BD
HMRC,HMRC,07/09/2023,PROJECT Mandays Supp,Transformation Making Tax Digital,CAPGEMINI,5100033745,"261,919.43",PROJECT Mandays HMRC,TF3 3BD
HMRC,HMRC,07/09/2023,PROJECT Mandays Supp,B&T Border Change Delivery,ATOS IT SERVICES UK LTD,5100033754,"34,354.98",PROJECT Mandays Supp,WC1V 6EA
HMRC,HMRC,07/09/2023,PROJECT Mandays Supp,B&T Border Change Delivery,ATOS IT SERVICES UK LTD,5100033757,"23,394.80",PROJECT Mandays Supp,WC1V 6EA
HMRC,HMRC,07/09/2023,PROJECT Mandays HMRC,Transformation Making Tax Digital,CAPGEMINI,5100033761,"35,914.26",PROJECT Mandays HMRC,TF3 3BD
HMRC,HMRC,07/09/2023,PROJECT Mandays Supp,Transformation Making Tax Digital,CAPGEMINI,5100033764,"3,607.60",PROJECT Mandays Supp,TF3 3BD
HMRC,HMRC,07/09/2023,PROJECT Mandays Supp,Transformation Making Tax Digital,CAPGEMINI,5100033764,"52,590.80",PROJECT Mandays HMRC,TF3 3BD
HMRC,HMRC,07/09/2023,PROJECT Mandays Supp,Transformation Making Tax Digital,CAPGEMINI,5100033769,"53,915.73",PROJECT Mandays Supp,TF3 3BD
HMRC,HMRC,07/09/2023,PROJECT Mandays Supp,Transformation Making Tax Digital,CAPGEMINI,5100033769,"677,875.15",PROJECT Mandays HMRC,TF3 3BD
HMRC,HMRC,07/09/2023,Contact Platform Ser,CDIO - Core,CAPGEMINI,5100033776,"22,081.18",Contact Platform Ser,TF3 3BD
HMRC,HMRC,07/09/2023,PROJECT Mandays Supp,Risk & Intelligence,CAPGEMINI,5100033781,"53,761.14",PROJECT Mandays Supp,TF3 3BD
HMRC,HMRC,07/09/2023,Contact Platform Ser,CDIO - Core,CAPGEMINI,5100033782,"699,223.71",Contact Platform Ser,TF3 3BD
HMRC,HMRC,07/09/2023,PROJECT Mandays Supp,CDIO Transformation Programmes,CAPGEMINI,5100033783,"28,550.32",PROJECT Mandays Supp,TF3 3BD
HMRC,HMRC,07/09/2023,PROJECT Mandays Supp,Risk & Intelligence,CAPGEMINI,5100033784,"137,278.63",PROJECT Mandays Supp,TF3 3BD
HMRC,HMRC,07/09/2023,PROJECT Mandays Supp,CDIO Transformation Programmes,CAPGEMINI,5100033786,"50,170.35",PROJECT Mandays Supp,TF3 3BD
HMRC,HMRC,07/09/2023,PROJECT Mandays Supp,CDIO Transformation Programmes,CAPGEMINI,5100033788,"155,939.52",PROJECT Mandays Supp,TF3 3BD
HMRC,HMRC,07/09/2023,PROJECT Mandays Supp,CDIO - Core,EQUAL EXPERTS UK LTD,5100033790,"31,906.00",PROJECT Mandays Supp,AL1 5HE
HMRC,HMRC,07/09/2023,PROJECT Mandays Supp,CDIO - Core,EQUAL EXPERTS UK LTD,5100033791,"198,211.00",PROJECT Mandays Supp,AL1 5HE
HMRC,HMRC,07/09/2023,PROJECT Mandays Supp,Transformation DG & Programme Office,CAPGEMINI,5100033804,"34,064.46",Capgemini ETMP's design build test and ATS Support activities,TF3 3BD
HMRC,HMRC,07/09/2023,PROJECT Mandays Supp,Transformation DG & Programme Office,CAPGEMINI,5100033805,"25,186.98",Adept Delivery,TF3 3BD
HMRC,HMRC,07/09/2023,PROJECT Mandays Supp,Transformation DG & Programme Office,CAPGEMINI,5100033806,"116,569.00",Capgemini Clientside Resource Oct-Dec 23,TF3 3BD
HMRC,HMRC,07/09/2023,PROJECT Mandays Supp,Programme and Operational Delivery,CAPGEMINI,5100033878,"53,188.85",PROJECT Mandays Supp,TF3 3BD
HMRC,HMRC,07/09/2023,PROJECT Mandays Supp,Programme and Operational Delivery,CAPGEMINI,5100033879,"20,912.53",PROJECT Mandays Supp,TF3 3BD
HMRC,HMRC,07/09/2023,SW Lic Sup Off shlf,CDIO - Core,SOFTCAT LTD,5100033958,"446,951.80",SW Lic Sup Off shlf,SL7 1LW
HMRC,HMRC,07/09/2023,PROJECT Mandays Supp,CDIO - Core,MICROSOFT LTD,5100033960,"164,615.50",PROJECT Mandays Supp,RG6 1WG
HMRC,HMRC,07/09/2023,Facilities Mngmnt,Estates,Wates Property Services Ltd,5100033961,"47,477.36",Facilities Mngmnt,EN1 3XA
HMRC,HMRC,07/09/2023,Facilities Mngmnt,Estates,Wates Property Services Ltd,5100033961,"291,646.63",Facilities Mngmnt,EN1 3XA
HMRC,HMRC,07/09/2023,Facilities Mngmnt,Estates,Wates Property Services Ltd,5100033965,"26,107.12",Facilities Mngmnt,EN1 3XA
HMRC,HMRC,07/09/2023,Facilities Mngmnt,Estates,Wates Property Services Ltd,5100033965,"160,372.30",Facilities Mngmnt,EN1 3XA
HMRC,HMRC,07/09/2023,Facilities Mngmnt,Estates,BELLROCK PROPERTY & FACILITIES,5100033968,"21,987.78",Facilities Mngmnt,LE1 6LP
HMRC,HMRC,07/09/2023,Facilities Mngmnt,Estates,BELLROCK PROPERTY & FACILITIES,5100033968,"135,067.77",Facilities Mngmnt,LE1 6LP
HMRC,HMRC,07/09/2023,PROJECT Mandays Supp,B&T Border Change Delivery,Automation Logic,5100033970,"197,089.20",Customs Declaration Service Contractor Costs,EC3V 1LP
HMRC,HMRC,07/09/2023,Document scanning,Transformation DG & Programme Office,RESTORE DIGITAL LTD,5100033972,"65,353.93",Document scanning,WV14 0UJ
HMRC,HMRC,07/09/2023,Business Rates,Estates,BOROUGH OF TELFORD & WREKIN,5100033977,"7,311.36",Business Rates,TF3 4LP
HMRC,HMRC,07/09/2023,Business Rates,Estates,BOROUGH OF TELFORD & WREKIN,5100033977,"44,912.64",Business Rates,TF3 4LP
HMRC,HMRC,07/09/2023,Cons ad imp (Ir VAT),CDIO Transformation Programmes,ERNST & YOUNG LLP,5100033981,"136,446.00",Cons ad imp (Ir VAT),SE1 2AF
HMRC,HMRC,07/09/2023,Cons ad imp (Ir VAT),CDIO Transformation Programmes,ERNST & YOUNG LLP,5100033982,"121,880.86",Cons ad imp (Ir VAT),SE1 2AF
HMRC,HMRC,07/09/2023,PROJECT Mandays Supp,CDIO - Core,CAPGEMINI,5100033989,"53,983.91",PROJECT Mandays Supp,TF3 3BD
HMRC,HMRC,07/09/2023,Rent (Irrec VAT),Estates,Workman Holding Account,5100033990,"3,591.00",Rent (Irrec VAT),EC2V 6EE
HMRC,HMRC,07/09/2023,Rent (Irrec VAT),Estates,Workman Holding Account,5100033990,"22,059.00",Rent (Irrec VAT),EC2V 6EE
HMRC,HMRC,07/09/2023,PROJECT Mandays Supp,CDIO - Core,ACCENTURE (UK) LTD,5100033991,"27,417.00",PROJECT Mandays Supp,EC3M 3BD
HMRC,HMRC,07/09/2023,PROJECT Mandays Supp,HMRC Security,CAPGEMINI,5100033997,"21,976.06",PROJECT Mandays Supp,TF3 3BD
HMRC,HMRC,07/09/2023,Soft FM Services,Estates,SODEXO LTD,5100033999,"78,879.05",Soft FM Services,M50 2UE
HMRC,HMRC,07/09/2023,Soft FM Services,Estates,SODEXO LTD,5100033999,"484,542.76",Soft FM Services,M50 2UE
HMRC,HMRC,07/09/2023,Soft FM Services,Estates,SODEXO LTD,5100034001,"10,686.14",Soft FM Services,M50 2UE
HMRC,HMRC,07/09/2023,Soft FM Services,Estates,SODEXO LTD,5100034001,"65,643.43",Soft FM Services,M50 2UE
HMRC,HMRC,07/09/2023,PROJECT Mandays Supp,B&T Border Change Delivery,CGI IT UK LTD,5100034005,"23,294.25",PROJECT Mandays Supp,CF31 9AP
HMRC,HMRC,07/09/2023,PROJECT Mandays Supp,B&T Border Change Delivery,SPECIALIST COMPUTER CTR,5100034006,"5,094,566.17",Customs Declaration Service Contractor Costs,B11 2LE
HMRC,HMRC,07/09/2023,PROJECT Mandays Supp,Transformation DG & Programme Office,CAPGEMINI,5100034011,"113,788.13",PROJECT Mandays Supp,TF3 3BD
HMRC,HMRC,08/09/2023,Physical Hosting and Infrastructure,CDIO - Core,FUJITSU SERVICES LTD,1900294919,"147,113.85",Physical Hosting and Infrastructure,WA3 6GD
HMRC,HMRC,08/09/2023,Contracted Services,Operational Excellence & Output Mgmt,COMMUNISIS UK LTD,1900298819,"63,360.36",Contracted Services,LS15 8AH
HMRC,HMRC,08/09/2023,GovDept Serv(VAT Ex),CSG Transformation,NATIONAL SAVINGS & INVESTMENTS,5100034045,"48,394.50",GovDept Serv(VAT Ex),SW1V 2QX
HMRC,HMRC,08/09/2023,Project support,Strat Planning Customer & Infrastructure,Gleeds Building Surveying Ltd,5100034057,"42,489.00",Inland Border Facility - Build Costs,W1W 6XF
HMRC,HMRC,08/09/2023,Office Fit Irrec VAT,Strat Planning Customer & Infrastructure,VINCI CONSTRUCTION UK LTD,5100034058,"119,627.18",Inland Border Facility - Build Costs,WD24 4WW
HMRC,HMRC,08/09/2023,PROJECT Mandays Supp,Programme and Operational Delivery,COGNIZANT,5100034068,"139,040.00",PROJECT Mandays Supp,W2 6BD
HMRC,HMRC,08/09/2023,PROJECT Mandays Supp,CDIO Transformation Programmes,CAPGEMINI,5100034075,"25,857.01",PROJECT Mandays Supp,TF3 3BD
HMRC,HMRC,08/09/2023,PROJECT Mandays Supp,Transformation Making Tax Digital,CAPGEMINI,5100034078,"45,306.77",PROJECT Mandays HMRC,TF3 3BD
HMRC,HMRC,08/09/2023,Consultancy � IT,B&T Border Change Delivery,Coforge,5100034095,"30,910.00",Customs Declaration Service Contractor Costs,EC3R 7QQ
HMRC,HMRC,08/09/2023,Consultancy � IT,Solicitor's Office & Legal Services,COGNIZANT,5100034098,"75,686.00",Software License Fee,W2 6BD
HMRC,HMRC,08/09/2023,PROJECT Mandays Supp,Transformation Making Tax Digital,CAPGEMINI,5100034103,"8,873.00",PROJECT Mandays HMRC,TF3 3BD
HMRC,HMRC,08/09/2023,PROJECT Mandays Supp,Transformation Making Tax Digital,CAPGEMINI,5100034103,"144,052.41",PROJECT Mandays HMRC,TF3 3BD
HMRC,HMRC,08/09/2023,PROJECT Mandays Supp,Transformation Making Tax Digital,CAPGEMINI,5100034105,"27,097.93",PROJECT Mandays HMRC,TF3 3BD
HMRC,HMRC,08/09/2023,PROJECT Mandays Supp,Transformation Making Tax Digital,CAPGEMINI,5100034108,"56,839.12",PROJECT Mandays HMRC,TF3 3BD
HMRC,HMRC,08/09/2023,GovDept Serv(VAT Ex),CSG Transformation,NATIONAL SAVINGS & INVESTMENTS,5100034115,"1,438,670.15",GovDept Serv(VAT Ex),SW1V 2QX
HMRC,HMRC,08/09/2023,Cons ad imp (Ir VAT),CDIO Transformation Programmes,Posterity Milestone Consortium,5100034120,"58,212.00",Cons ad imp (Ir VAT),FY8 4QZ
HMRC,HMRC,08/09/2023,PROJECT Mandays Supp,B&T Border Change Delivery,ATOS IT SERVICES UK LTD,5100034121,"28,372.06",ATWD Test ServiceATWD Test Service,WC1V 6EA
HMRC,HMRC,08/09/2023,PROJECT Mandays Supp,Transformation DG & Programme Office,PEGASYSTEMS LTD,5100034123,"241,600.00",PROJECT Mandays Supp,RG1 3JH
HMRC,HMRC,08/09/2023,PROJECT Mandays HMRC,CDIO - Core,PEGASYSTEMS LTD,5100034215,"100,656.00",PROJECT Mandays HMRC,RG1 3JH
HMRC,HMRC,08/09/2023,PROJECT Mandays Supp,CDIO - Core,ACCENTURE (UK) LTD,5100034216,"44,451.00",PROJECT Mandays Supp,EC3M 3BD
HMRC,HMRC,08/09/2023,PROJECT Mandays Supp,CDIO Transformation Programmes,ACCENTURE (UK) LTD,5100034236,"26,472.03",PROJECT Mandays Supp,EC3M 3BD
HMRC,HMRC,08/09/2023,Physical Hosting,CDIO Transformation Programmes,Crown Hosting Data Centres Ltd,5100034242,"58,385.20",Physical Hosting,SN13 9GB
HMRC,HMRC,08/09/2023,Soft FM Services,Estates,SODEXO LTD,5100034243,"38,060.83",Soft FM Services,M50 2UE
HMRC,HMRC,08/09/2023,Rent (Irrec VAT),Estates,Mapledurham Properties Ltd,5100034244,"402,000.00",Rent (Irrec VAT),M2 4AW
HMRC,HMRC,08/09/2023,Property mgmt. ser.,Estates,LAMBERT SMITH HAMPTON,5100034247,"4,520.78",Property mgmt. ser.,NG1 5FS
HMRC,HMRC,08/09/2023,Facility rental,Estates,LAMBERT SMITH HAMPTON,5100034247,"6,738.90",Facility rental,NG1 5FS
HMRC,HMRC,08/09/2023,Property mgmt. ser.,Estates,LAMBERT SMITH HAMPTON,5100034247,"25,617.74",Property mgmt. ser.,NG1 5FS
HMRC,HMRC,08/09/2023,Facility rental,Estates,LAMBERT SMITH HAMPTON,5100034247,"38,187.10",Facility rental,NG1 5FS
HMRC,HMRC,08/09/2023,Business Rates,Estates,BOROUGH OF TELFORD & WREKIN,5100034249,"7,383.04",Business Rates,TF3 4LP
HMRC,HMRC,08/09/2023,Business Rates,Estates,BOROUGH OF TELFORD & WREKIN,5100034249,"45,352.96",Business Rates,TF3 4LP
HMRC,HMRC,08/09/2023,Rent (Irrec VAT),Estates,Workman Holding Account,5100034251,"132,022.34",Rent (Irrec VAT),EC2V 6EE
HMRC,HMRC,08/09/2023,Rent (Irrec VAT),Estates,Workman Holding Account,5100034251,"810,994.36",Rent (Irrec VAT),EC2V 6EE
HMRC,HMRC,08/09/2023,PROJECT Mandays Supp,CDIO Transformation Programmes,IBM UNITED KINGDOM LTD,5100034252,"57,886.00",PROJECT Mandays Supp,SE1 9PZ
HMRC,HMRC,08/09/2023,PROJECT Mandays Supp,Transformation DG & Programme Office,COGNIZANT,5100034286,"24,670.00",PROJECT Mandays Supp,W2 6BD
HMRC,HMRC,08/09/2023,Consultancy � IT,CDIO - Core,COGNIZANT,5100034289,"146,161.00",Consultancy � IT,W2 6BD
HMRC,HMRC,11/09/2023,Virtual Hosting and Infrastructure,CDIO - Core,Amazon Web Services UK,1900298879,"45,649.94",Virtual Hosting and Infrastructure,EC2A 2FA
HMRC,HMRC,11/09/2023,Virtual Hosting and Infrastructure,CDIO - Core,Amazon Web Services UK,1900298880,"1,324,678.59",Virtual Hosting and Infrastructure,EC2A 2FA
HMRC,HMRC,11/09/2023,Contact Platform Ser,CDIO - Core,NUANCE COMMUNICATIONS IRELAND LTD,5100034026,"118,333.27",Contact Platform Ser,D02 F721
HMRC,HMRC,11/09/2023,Desktop Managed Serv,Estates,Convergint Technologies Uk Limited,5100034290,"44,665.37",Desktop Managed Services,TN6 3JZ
HMRC,HMRC,11/09/2023,PROJECT Mandays Supp,Transformation DG & Programme Office,ACCENTURE (UK) LTD,5100034292,"59,662.78",PROJECT Mandays Supp,EC3M 3BD
HMRC,HMRC,11/09/2023,PROJECT Mandays Supp,Transformation Making Tax Digital,CAPGEMINI,5100034299,"58,963.13",PROJECT Mandays HMRC,TF3 3BD
HMRC,HMRC,11/09/2023,PROJECT Mandays Supp,Transformation Making Tax Digital,CAPGEMINI,5100034300,"195,810.66",PROJECT Mandays HMRC,TF3 3BD
HMRC,HMRC,11/09/2023,Contin Labor Build,CDIO - Core,ATELIER7 Ltd,5100034304,"50,000.00",Contin Labor Build,SE1 8DJ
HMRC,HMRC,11/09/2023,SW Lic Sup Off shlf,Programme and Operational Delivery,Smarter Technologies,5100034306,"101,299.87",Inland Border Facility - Running Costs,BH24 3FG
HMRC,HMRC,11/09/2023,PROJECT Mandays Supp,Transformation DG & Programme Office,COGNIZANT,5100034315,"58,120.00",PROJECT Mandays Supp,W2 6BD
HMRC,HMRC,11/09/2023,PROJECT Mandays Supp,Transformation DG & Programme Office,COGNIZANT,5100034318,"37,200.00",PROJECT Mandays Supp,W2 6BD
HMRC,HMRC,11/09/2023,PROJECT Mandays Supp,Transformation DG & Programme Office,COGNIZANT,5100034322,"23,877.00",PROJECT Mandays Supp,W2 6BD
HMRC,HMRC,11/09/2023,PROJECT Mandays Supp,Transformation DG & Programme Office,COGNIZANT,5100034327,"23,877.00",PROJECT Mandays Supp,W2 6BD
HMRC,HMRC,11/09/2023,Employee education,Fraud Investigation Service,KENT POLICE,5100034328,"44,898.00",Employee education,ME15 9BZ
HMRC,HMRC,11/09/2023,PROJECT Mandays Supp,B&T Border Change Delivery,EQUAL EXPERTS UK LTD,5100034329,"586,258.00",Customs Declaration Service Contractor Costs,AL1 5HE
HMRC,HMRC,11/09/2023,Contin Labor Build,Transformation Making Tax Digital,Atos Holding UK 1 Ltd,5100034340,"308,745.68",PROJECT Mandays Supp,WC1V 6EA
HMRC,HMRC,11/09/2023,Contin Labor Build,Transformation Making Tax Digital,Atos Holding UK 1 Ltd,5100034340,"570,906.77",PROJECT Mandays HMRC,WC1V 6EA
HMRC,HMRC,11/09/2023,Contin Labor Build,CDIO Transformation Programmes,BUTTERFLY PROJECTS LTD,5100034350,"55,132.00",Contin Labor Build,CF83 3GG
HMRC,HMRC,11/09/2023,Contin Labor Build,CDIO - Core,Talend Limited,5100034351,"180,480.00",Contin Labor Build,SL6 4UB
HMRC,HMRC,11/09/2023,OHS,HR,People Asset Management Ltd,5100034352,"48,101.04",Occupational Health Services,WA1 1SL
HMRC,HMRC,11/09/2023,Contact Platform Ser,CDIO - Core,CAPGEMINI,5100034360,"87,865.78",Contact Platform Ser,TF3 3BD
HMRC,HMRC,11/09/2023,PROJECT Mandays Supp,Programme and Operational Delivery,CAPGEMINI,5100034460,"69,127.49",PROJECT Mandays Supp,TF3 3BD
HMRC,HMRC,11/09/2023,PROJECT Mandays Supp,CDIO - Core,CGI IT UK LTD,5100034503,"486,242.07",PROJECT Mandays Supp,CF31 9AP
HMRC,HMRC,11/09/2023,PROJECT Mandays Supp,CDIO - Core,CAPGEMINI,5100034510,"123,259.50",PROJECT Mandays Supp,TF3 3BD
HMRC,HMRC,11/09/2023,PROJECT Mandays Supp,PDC Customer Strategy & Tax Design,CAPGEMINI,5100034517,"51,068.06",Software Build/Test,TF3 3BD
HMRC,HMRC,11/09/2023,Rent (Irrec VAT),Estates,Workman Holding Account,5100034523,"23,949.58",Rent (Irrec VAT),EC2V 6EE
HMRC,HMRC,11/09/2023,Rent (Irrec VAT),Estates,Workman Holding Account,5100034523,"147,118.82",Rent (Irrec VAT),EC2V 6EE
HMRC,HMRC,11/09/2023,Rent (Irrec VAT),Estates,Workman Holding Account,5100034525,"23,947.39",Rent (Irrec VAT),EC2V 6EE
HMRC,HMRC,11/09/2023,Rent (Irrec VAT),Estates,Workman Holding Account,5100034525,"147,105.41",Rent (Irrec VAT),EC2V 6EE
HMRC,HMRC,11/09/2023,Rent (Irrec VAT),Estates,Workman Holding Account,5100034527,"45,391.67",Rent (Irrec VAT),EC2V 6EE
HMRC,HMRC,11/09/2023,Rent (Irrec VAT),Estates,Workman Holding Account,5100034527,"278,834.53",Rent (Irrec VAT),EC2V 6EE
HMRC,HMRC,11/09/2023,Rent (Irrec VAT),Estates,Workman Holding Account,5100034529,"44,004.88",Rent (Irrec VAT),EC2V 6EE
HMRC,HMRC,11/09/2023,Rent (Irrec VAT),Estates,Workman Holding Account,5100034529,"270,315.62",Rent (Irrec VAT),EC2V 6EE
HMRC,HMRC,11/09/2023,Rent (Irrec VAT),Estates,Workman Holding Account,5100034531,"107,654.74",Rent (Irrec VAT),EC2V 6EE
HMRC,HMRC,11/09/2023,Rent (Irrec VAT),Estates,Workman Holding Account,5100034531,"661,307.66",Rent (Irrec VAT),EC2V 6EE
HMRC,HMRC,11/09/2023,Rent (Irrec VAT),Estates,Workman Holding Account,5100034532,"27,989.02",Rent (Irrec VAT),EC2V 6EE
HMRC,HMRC,11/09/2023,Rent (Irrec VAT),Estates,Workman Holding Account,5100034532,"171,932.48",Rent (Irrec VAT),EC2V 6EE
HMRC,HMRC,11/09/2023,Rent (Irrec VAT),Estates,Workman Holding Account,5100034534,"88,028.47",Rent (Irrec VAT),EC2V 6EE
HMRC,HMRC,11/09/2023,Rent (Irrec VAT),Estates,Workman Holding Account,5100034534,"540,746.33",Rent (Irrec VAT),EC2V 6EE
HMRC,HMRC,11/09/2023,SW Lic Sup Off shlf,CDIO - Core,XMA LTD,5100034543,"47,472.00",SW Lic Sup Off shlf,NG11 7EP
HMRC,HMRC,11/09/2023,Sys Software Maint,CDIO Transformation Programmes,CAPGEMINI,5100034544,"49,216.00",Sys Software Maint,TF3 3BD
HMRC,HMRC,11/09/2023,PROJECT Mandays Supp,Programme and Operational Delivery,TECKNUOVO LTD,5100034550,"6,829.67",PROJECT Mandays Supp,N1 7GU
HMRC,HMRC,11/09/2023,PROJECT Mandays Supp,B&T Border Change Delivery,TECKNUOVO LTD,5100034550,"23,903.86",PROJECT Mandays Supp,N1 7GU
HMRC,HMRC,11/09/2023,PROJECT Mandays Supp,Programme and Operational Delivery,TECKNUOVO LTD,5100034550,"28,684.64",PROJECT Mandays Supp,N1 7GU
HMRC,HMRC,11/09/2023,PROJECT Mandays Supp,B&T Border Change Delivery,TECKNUOVO LTD,5100034550,"61,808.56",Customs Declaration Service Contractor Costs,N1 7GU
HMRC,HMRC,11/09/2023,PROJECT Mandays Supp,Programme and Operational Delivery,TECKNUOVO LTD,5100034550,"88,785.78",PROJECT Mandays Supp,N1 7GU
HMRC,HMRC,11/09/2023,PROJECT Mandays Supp,Programme and Operational Delivery,TECKNUOVO LTD,5100034550,"131,471.24",PROJECT Mandays Supp,N1 7GU
HMRC,HMRC,11/09/2023,Rent (Irrec VAT),Programme and Operational Delivery,CHANNEL PORTS LTD,5100034558,"74,400.00",Inland Border Facility - Running Costs,CT21 4BL
HMRC,HMRC,11/09/2023,PROJECT Mandays Supp,Transformation DG & Programme Office,CAPGEMINI,5100034561,"40,120.01",Capgemini DPS Technical Services,TF3 3BD
HMRC,HMRC,11/09/2023,Physical Data Transf,Risk & Intelligence,BUTTERFLY PROJECTS LTD,5100034567,"35,075.00",Physical Data Transf,CF83 3GG
HMRC,HMRC,11/09/2023,PROJECT Mandays HMRC,Transformation DG & Programme Office,CAPGEMINI,5100034579,"344,627.03",PROJECT Mandays HMRC,TF3 3BD
HMRC,HMRC,11/09/2023,PROJECT Mandays Supp,CDIO - Core,FUJITSU SERVICES LTD,5100034592,"62,070.15",PROJECT Mandays Supp,WA3 6GD
HMRC,HMRC,11/09/2023,PROJECT Mandays Supp,CDIO Transformation Programmes,CAPGEMINI,5100034594,"116,517.44",PROJECT Mandays Supp,TF3 3BD
HMRC,HMRC,12/09/2023,Management of Agreement & Admin Costs,CDIO - Core,FUJITSU SERVICES LTD,1900299020,"562,864.55",Management of Agreement & Admin Costs,WA3 6GD
HMRC,HMRC,12/09/2023,E2 Other ex-gratia Special Payments,Estates,Thompsons Solicitors,1900299033,"50,000.00",Solictor costs,EH2 3AT
HMRC,HMRC,12/09/2023,Virtual Hosting and Infrastructure,CDIO - Core,Amazon Web Services UK,1900299047,"3,556,054.40",Virtual Hosting and Infrastructure,EC2A 2FA
HMRC,HMRC,12/09/2023,Virtual Hosting and Infrastructure,CDIO - Core,Amazon Web Services UK,1900299049,"123,335.75",Virtual Hosting and Infrastructure,EC2A 2FA
HMRC,HMRC,12/09/2023,PROJECT Mandays Supp,CDIO - Core,NETBUILDER LTD,5100034600,"51,400.27",PROJECT Mandays Supp,WN3 5BA
HMRC,HMRC,12/09/2023,Contin Labor Run,HMRC Security,CGI IT UK LTD,5100034603,"27,825.60",Contin Labor Run,CF31 9AP
HMRC,HMRC,12/09/2023,Contin Labor Run,HMRC Security,CGI IT UK LTD,5100034605,"26,826.00",Contin Labor Run,CF31 9AP
HMRC,HMRC,12/09/2023,Contin Labor Run,HMRC Security,CGI IT UK LTD,5100034607,"29,330.40",Contin Labor Run,CF31 9AP
HMRC,HMRC,12/09/2023,PROJECT Mandays Supp,CFO Transformation Programmes,CAPGEMINI,5100034608,"73,862.91",PROJECT Mandays Supp,TF3 3BD
HMRC,HMRC,12/09/2023,PROJECT Mandays Supp,CDIO Transformation Programmes,SAP (UK) LTD,5100034610,"87,200.00",PROJECT Mandays Supp,TW14 8HD
HMRC,HMRC,12/09/2023,Nat Pst Del Ser(VAT),Operational Excellence & Output Mgmt,Royal Mail Group Ltd,5100034611,"1,372.72",Nat Pst Del Ser(VAT),S49 1HQ
HMRC,HMRC,12/09/2023,National postal ZVAT,Operational Excellence & Output Mgmt,Royal Mail Group Ltd,5100034611,"18,407.35",National postal ZVAT,S49 1HQ
HMRC,HMRC,12/09/2023,National postal EVAT,Operational Excellence & Output Mgmt,Royal Mail Group Ltd,5100034611,"3,271,502.88",National postal EVAT,S49 1HQ
HMRC,HMRC,12/09/2023,PROJECT Mandays Supp,CDIO - Core,COGNIZANT,5100034612,"58,170.75",PROJECT Mandays Supp,W2 6BD
HMRC,HMRC,12/09/2023,PROJECT Mandays Supp,CDIO Transformation Programmes,FUJITSU SERVICES LTD,5100034627,"104,637.57",PROJECT Mandays Supp,WA3 6GD
HMRC,HMRC,12/09/2023,PROJECT Mandays Supp,CDIO - Core,ATKINS LTD,5100034637,"47,151.73",PROJECT Mandays Supp,KT18 5BW
HMRC,HMRC,12/09/2023,PROJECT Mandays Supp,CDIO - Core,CAPGEMINI,5100034639,"159,889.56",PROJECT Mandays Supp,TF3 3BD
HMRC,HMRC,12/09/2023,PROJECT Mandays HMRC,Transformation DG & Programme Office,PEGASYSTEMS LTD,5100034652,"181,800.00",Pega Services CDCS Q2 23-24 resources,RG1 3JH
HMRC,HMRC,12/09/2023,PROJECT Mandays HMRC,Transformation DG & Programme Office,COGNIZANT,5100034655,"508,415.70",Pega Cognizant SOW COG-0003 for CDCS Q2 23-24 resources,W2 6BD
HMRC,HMRC,12/09/2023,PROJECT Mandays Supp,CDIO - Core,CAPGEMINI,5100034667,"73,694.00",PROJECT Mandays Supp,TF3 3BD
HMRC,HMRC,12/09/2023,PROJECT Mandays Supp,B&T Border Change Delivery,SPECIALIST COMPUTER CTR,5100034669,"181,556.98",Customs Declaration Service Contractor Costs,B11 2LE
HMRC,HMRC,12/09/2023,PROJECT Mandays Supp,Transformation DG & Programme Office,DELOITTE LLP (L),5100034671,"265,137.58",PROJECT Mandays Supp,MK9 1FD
HMRC,HMRC,12/09/2023,PROJECT Mandays Supp,CDIO - Core,CAPGEMINI,5100034673,"26,173.80",PROJECT Mandays Supp,TF3 3BD
HMRC,HMRC,12/09/2023,PROJECT Mandays Supp,Transformation DG & Programme Office,CAPGEMINI,5100034677,"25,228.83",IDMS upfront eligibility checks,TF3 3BD
HMRC,HMRC,12/09/2023,Contin Labor Build,CDIO - Core,EQUAL EXPERTS UK LTD,5100034683,"22,601.75",Contin Labor Build,AL1 5HE
HMRC,HMRC,12/09/2023,PROJECT Mandays Supp,CDIO Transformation Programmes,EQUAL EXPERTS UK LTD,5100034685,"68,382.72",PROJECT Mandays Supp,AL1 5HE
HMRC,HMRC,12/09/2023,PROJECT Mandays Supp,CDIO Transformation Programmes,EQUAL EXPERTS UK LTD,5100034686,"136,716.86",PROJECT Mandays Supp,AL1 5HE
HMRC,HMRC,12/09/2023,Contin Labor Build,CDIO Transformation Programmes,EQUAL EXPERTS UK LTD,5100034689,"26,147.84",Contin Labor Build,AL1 5HE
HMRC,HMRC,12/09/2023,PROJECT Mandays Supp,PDC Customer Strategy & Tax Design,ACCENTURE (UK) LTD,5100034692,"24,329.00",Software Build/Test,EC3M 3BD
HMRC,HMRC,12/09/2023,PROJECT Mandays Supp,CDIO - Core,FUJITSU SERVICES LTD,5100034694,"27,058.35",PROJECT Mandays Supp,WA3 6GD
HMRC,HMRC,12/09/2023,PROJECT Mandays Supp,CDIO - Core,FUJITSU SERVICES LTD,5100034695,"24,516.51",PROJECT Mandays Supp,WA3 6GD
HMRC,HMRC,12/09/2023,PROJECT Mandays Supp,B&T Border Change Delivery,Automation Logic,5100034780,"168,385.00",Customs Declaration Service Contractor Costs,EC3V 1LP
HMRC,HMRC,12/09/2023,Virtual Hosting,CDIO - Core,Amazon Web Services UK,5100034821,"28,751.78",Virtual Hosting,EC2A 2FA
HMRC,HMRC,12/09/2023,PROJECT Mandays Supp,CCG Transformation Programmes,SAS SOFTWARE LTD,5100034889,"39,252.51",PROJECT Mandays Supp,SL7 2EB
HMRC,HMRC,12/09/2023,PROJECT Mandays HMRC,Operational Excellence & Output Mgmt,ACCENTURE (UK) LTD,5100034895,"28,229.77",PROJECT Mandays HMRC,EC3M 3BD
HMRC,HMRC,12/09/2023,Consultancy � IT,CDIO - Core,COGNIZANT,5100034897,"48,622.00",Consultancy � IT,W2 6BD
HMRC,HMRC,12/09/2023,Consultancy � IT,CDIO - Core,COGNIZANT,5100034899,"24,618.00",Consultancy � IT,W2 6BD
HMRC,HMRC,12/09/2023,Consultancy � IT,CDIO - Core,COGNIZANT,5100034900,"342,540.00",Consultancy � IT,W2 6BD
HMRC,HMRC,12/09/2023,Internat. Courier,Operational Excellence & Output Mgmt,G3 WORLDWIDE (UK) LTD,5100034902,"69,018.62",Internat. Courier,UB2 5LF
HMRC,HMRC,12/09/2023,Consultancy � IT,CDIO - Core,Coforge,5100034903,"34,650.00",Consultancy � IT,EC3R 7QQ
HMRC,HMRC,12/09/2023,Govt bank service,Government Banking and Payments,BARCLAYS BANK PLC T/A BARCLAYCARD,5100034905,"32,316.07",Banking finance and payments,E14 5HP
HMRC,HMRC,12/09/2023,GBS Operational bank,Government Banking and Payments,BARCLAYS BANK PLC T/A BARCLAYCARD,5100034905,"1,086,405.71",Banking finance and payments,E14 5HP
HMRC,HMRC,12/09/2023,PROJECT Mandays Supp,CDIO - Core,CAPGEMINI,5100034906,"413,685.47",PROJECT Mandays Supp,TF3 3BD
HMRC,HMRC,12/09/2023,Consultancy � IT,CDIO - Core,Coforge,5100034911,"73,067.00",Consultancy � IT,EC3R 7QQ
HMRC,HMRC,12/09/2023,Consultancy � IT,Compliance Operations Directorate,Coforge,5100034912,"89,189.00",Consultancy � IT,EC3R 7QQ
HMRC,HMRC,12/09/2023,PROJECT Mandays Supp,CDIO - Core,CAPGEMINI,5100034914,"74,857.92",PROJECT Mandays Supp,TF3 3BD
HMRC,HMRC,12/09/2023,Contin Labor Run,HMRC Security,BSI CYBERSECURITY AND INFORMATION,5100034918,"31,350.00",Contin Labor Run,MK5 8PP
HMRC,HMRC,12/09/2023,Contin Labor Run,HMRC Security,BSI CYBERSECURITY AND INFORMATION,5100034925,"28,050.00",Contin Labor Run,MK5 8PP
HMRC,HMRC,12/09/2023,Contin Labor Run,HMRC Security,BSI CYBERSECURITY AND INFORMATION,5100034927,"28,875.00",Contin Labor Run,MK5 8PP
HMRC,HMRC,12/09/2023,Contin Labor Run,HMRC Security,BSI CYBERSECURITY AND INFORMATION,5100034928,"36,300.00",Contin Labor Run,MK5 8PP
HMRC,HMRC,12/09/2023,Contin Labor Run,HMRC Security,BSI CYBERSECURITY AND INFORMATION,5100034931,"30,525.00",Contin Labor Run,MK5 8PP
HMRC,HMRC,12/09/2023,Contin Labor Run,HMRC Security,BSI CYBERSECURITY AND INFORMATION,5100034934,"38,280.00",Contin Labor Run,MK5 8PP
HMRC,HMRC,12/09/2023,Contin Labor Run,HMRC Security,BSI CYBERSECURITY AND INFORMATION,5100034936,"38,280.00",Contin Labor Run,MK5 8PP
HMRC,HMRC,12/09/2023,Legal Solicitors fee,Solicitor's Office & Legal Services,THE SCOTLAND OFFICE,5100034941,"101,162.00",Software License Fee,EH3 7HW
HMRC,HMRC,12/09/2023,National postal EVAT,Operational Excellence & Output Mgmt,Royal Mail Group Ltd,5100034945,"32,454.84",National postal EVAT,S49 1HQ
HMRC,HMRC,12/09/2023,PROJECT Mandays Supp,Transformation DG & Programme Office,CAPGEMINI,5100034946,"23,801.47",PROJECT Mandays Supp,TF3 3BD
HMRC,HMRC,12/09/2023,Contin Labor Run,HMRC Security,BSI CYBERSECURITY AND INFORMATION,5100034947,"36,300.00",Contin Labor Run,MK5 8PP
HMRC,HMRC,12/09/2023,Contin Labor Run,HMRC Security,BSI CYBERSECURITY AND INFORMATION,5100034952,"34,747.20",Contin Labor Run,MK5 8PP
HMRC,HMRC,12/09/2023,Contin Labor Run,HMRC Security,BSI CYBERSECURITY AND INFORMATION,5100034957,"36,300.00",Contin Labor Run,MK5 8PP
HMRC,HMRC,12/09/2023,Contin Labor Run,HMRC Security,BSI CYBERSECURITY AND INFORMATION,5100034961,"33,000.00",Contin Labor Run,MK5 8PP
HMRC,HMRC,12/09/2023,PROJECT Mandays Supp,Transformation DG & Programme Office,CAPGEMINI,5100034963,"85,344.56",PROJECT Mandays Supp,TF3 3BD
HMRC,HMRC,12/09/2023,PROJECT Mandays Supp,CDIO - Core,HITACHI SOLUTIONS EUROPE LTD,5100034976,"187,523.38",PROJECT Mandays Supp,EC2N 1HQ
HMRC,HMRC,12/09/2023,PROJECT Mandays Supp,CDIO - Core,HITACHI SOLUTIONS EUROPE LTD,5100034977,"837,512.56",PROJECT Mandays Supp,EC2N 1HQ
HMRC,HMRC,12/09/2023,PROJECT Mandays Supp,CDIO - Core,HITACHI SOLUTIONS EUROPE LTD,5100034978,"795,446.88",PROJECT Mandays Supp,EC2N 1HQ
HMRC,HMRC,12/09/2023,PROJECT Mandays HMRC,CDIO - Core,CAPGEMINI,5100034989,"48,810.37",PROJECT Mandays HMRC,TF3 3BD
HMRC,HMRC,12/09/2023,Maintenance fees,CSG Transformation,HOME OFFICE,5100035006,"285,000.00",Maintenance fees,NP20 9BB
HMRC,HMRC,12/09/2023,PROJECT Mandays Supp,CDIO - Core,CAPGEMINI,5100035014,"38,248.00",PROJECT Mandays Supp,TF3 3BD
HMRC,HMRC,12/09/2023,OHS,HR,People Asset Management Ltd,5100035015,"48,101.04",Occupational Health Services,WA1 1SL
HMRC,HMRC,12/09/2023,PROJECT Mandays Supp,CCG Transformation Programmes,SAS SOFTWARE LTD,5100035027,"31,218.75",PROJECT Mandays Supp,SL7 2EB
HMRC,HMRC,12/09/2023,PROJECT Mandays Supp,CCG Transformation Programmes,COGNIZANT,5100035034,"23,025.00",PROJECT Mandays Supp,W2 6BD
HMRC,HMRC,12/09/2023,Facilities Mngmnt,Strat Planning Customer & Infrastructure,Wates Property Services Ltd,5100035035,"24,065.27",Inland Border Facility - Reinstatement Costs,EN1 3XA
HMRC,HMRC,12/09/2023,PROJECT Mandays Supp,CDIO - Core,CGI IT UK LTD,5100035047,"23,294.25",PROJECT Mandays Supp,CF31 9AP
HMRC,HMRC,12/09/2023,PROJECT Mandays Supp,CDIO - Core,CGI IT UK LTD,5100035050,"23,294.25",PROJECT Mandays Supp,CF31 9AP
HMRC,HMRC,12/09/2023,PROJECT Mandays Supp,CDIO - Core,CGI IT UK LTD,5100035052,"23,294.25",PROJECT Mandays Supp,CF31 9AP
HMRC,HMRC,12/09/2023,PROJECT Mandays Supp,CDIO - Core,CGI IT UK LTD,5100035055,"23,294.25",PROJECT Mandays Supp,CF31 9AP
HMRC,HMRC,12/09/2023,PROJECT Mandays Supp,CDIO - Core,CGI IT UK LTD,5100035057,"42,151.50",PROJECT Mandays Supp,CF31 9AP
HMRC,HMRC,13/09/2023,Project Development,CDIO - Core,ESYNERGY SOLUTIONS LTD,1900307273,"346,722.50",Project Development,EC3M 3JY
HMRC,HMRC,13/09/2023,System Maintenance,CDIO - Core,CAPGEMINI,1900307312,"68,504.35",System Maintenance,TF3 3BD
HMRC,HMRC,13/09/2023,System Maintenance,CDIO - Core,CAPGEMINI,1900307315,"792,450.01",System Maintenance,TF3 3BD
HMRC,HMRC,13/09/2023,SW Lic Sup mngd Serv,CDIO - Core,NUANCE COMMUNICATIONS IRELAND LTD,5100034330,"100,050.00",SW Lic Sup mngd Serv,D02 F721
HMRC,HMRC,13/09/2023,PROJECT Mandays Supp,CDIO - Core,CAPGEMINI,5100035076,"42,566.50",PROJECT Mandays Supp,TF3 3BD
HMRC,HMRC,13/09/2023,PROJECT Mandays Supp,Transformation Making Tax Digital,CAPGEMINI,5100035079,"92,373.45",PROJECT Mandays HMRC,TF3 3BD
HMRC,HMRC,13/09/2023,PROJECT Mandays Supp,Operational Excellence & Output Mgmt,ACCENTURE (UK) LTD,5100035101,"171,114.93",PROJECT Mandays Supp,EC3M 3BD
HMRC,HMRC,13/09/2023,Property mgmt. ser.,Estates,LAMBERT SMITH HAMPTON,5100035103,"4,536.27",Property mgmt. ser.,NG1 5FS
HMRC,HMRC,13/09/2023,Facility rental,Estates,LAMBERT SMITH HAMPTON,5100035103,"6,897.41",Facility rental,NG1 5FS
HMRC,HMRC,13/09/2023,Property mgmt. ser.,Estates,LAMBERT SMITH HAMPTON,5100035103,"25,705.56",Property mgmt. ser.,NG1 5FS
HMRC,HMRC,13/09/2023,Facility rental,Estates,LAMBERT SMITH HAMPTON,5100035103,"39,085.34",Facility rental,NG1 5FS
HMRC,HMRC,13/09/2023,PROJECT Mandays Supp,CDIO Transformation Programmes,FUJITSU SERVICES LTD,5100035104,"40,014.32",PROJECT Mandays Supp,WA3 6GD
HMRC,HMRC,13/09/2023,PROJECT Mandays Supp,CDIO Transformation Programmes,CAPGEMINI,5100035106,"600,094.27",PROJECT Mandays Supp,TF3 3BD
HMRC,HMRC,13/09/2023,Facilities Mngmnt,Estates,BELLROCK PROPERTY & FACILITIES,5100035122,"3,445.07",Facilities Mngmnt,LE1 6LP
HMRC,HMRC,13/09/2023,Facilities Mngmnt,Estates,BELLROCK PROPERTY & FACILITIES,5100035122,"21,162.59",Facilities Mngmnt,LE1 6LP
HMRC,HMRC,13/09/2023,Translation services,Fraud Investigation Service,THEBIGWORD INTERPRETING,5100035125,"23,687.81",Translation services,LS12 6AB
HMRC,HMRC,13/09/2023,Facilities Mngmnt,Estates,BELLROCK PROPERTY & FACILITIES,5100035127,"19,604.91",Facilities Mngmnt,LE1 6LP
HMRC,HMRC,13/09/2023,Facilities Mngmnt,Estates,BELLROCK PROPERTY & FACILITIES,5100035127,"120,430.15",Facilities Mngmnt,LE1 6LP
HMRC,HMRC,13/09/2023,Facilities Mngmnt,Estates,SERVEST GROUP LTD,5100035138,"42,131.98",Facilities Mngmnt,IP28 6LG
HMRC,HMRC,13/09/2023,Facilities Mngmnt,Estates,SERVEST GROUP LTD,5100035138,"258,810.75",Facilities Mngmnt,IP28 6LG
HMRC,HMRC,13/09/2023,PROJECT Mandays Supp,CDIO Transformation Programmes,FUJITSU SERVICES LTD,5100035139,"98,594.00",PROJECT Mandays Supp,WA3 6GD
HMRC,HMRC,13/09/2023,Facilities Mngmnt,Estates,SERVEST GROUP LTD,5100035142,"78,492.69",Facilities Mngmnt,IP28 6LG
HMRC,HMRC,13/09/2023,Facilities Mngmnt,Estates,SERVEST GROUP LTD,5100035142,"482,169.38",Facilities Mngmnt,IP28 6LG
HMRC,HMRC,13/09/2023,PROJECT Mandays Supp,PDC Customer Strategy & Tax Design,CAPGEMINI,5100035143,"44,484.66",Software Build/Test,TF3 3BD
HMRC,HMRC,13/09/2023,Contin Labor Build,CDIO Transformation Programmes,EQUAL EXPERTS UK LTD,5100035144,"373,968.00",Contin Labor Build,AL1 5HE
HMRC,HMRC,13/09/2023,Facilities Mngmnt,Estates,SERVEST GROUP LTD,5100035149,"29,112.91",Facilities Mngmnt,IP28 6LG
HMRC,HMRC,13/09/2023,Facilities Mngmnt,Estates,SERVEST GROUP LTD,5100035149,"178,836.43",Facilities Mngmnt,IP28 6LG
HMRC,HMRC,13/09/2023,Consultancy � IT,CDIO - Core,FINYX CONSULTING LTD,5100035151,"101,979.33",Consultancy � IT,MK11PT
HMRC,HMRC,13/09/2023,Contin Labor Build,CDIO - Core,COGNIZANT,5100035152,"22,300.00",Contin Labor Build,W2 6BD
HMRC,HMRC,13/09/2023,PROJECT Mandays Supp,CCG Transformation Programmes,COGNIZANT,5100035154,"24,150.00",PROJECT Mandays Supp,W2 6BD
HMRC,HMRC,13/09/2023,PROJECT Mandays HMRC,CDIO Transformation Programmes,DELOITTE LLP (L),5100035157,"475,200.00",PROJECT Mandays HMRC,MK9 1FD
HMRC,HMRC,13/09/2023,PROJECT Mandays Supp,B&T Border Change Delivery,Coforge,5100035161,"31,120.00",PROJECT Mandays Supp,EC3R 7QQ
HMRC,HMRC,13/09/2023,Contin Labor Build,B&T Border Change Delivery,COGNIZANT,5100035162,"322,840.00",Customs Declaration Service Contractor Costs,W2 6BD
HMRC,HMRC,13/09/2023,PROJECT Mandays Supp,Programme and Operational Delivery,ACCENTURE (UK) LTD,5100035163,"29,660.27",PROJECT Mandays Supp,EC3M 3BD
HMRC,HMRC,13/09/2023,PROJECT Mandays Supp,B&T Border Change Delivery,CAPGEMINI,5100035257,"59,035.34",Trader data daily contractor costs,TF3 3BD
HMRC,HMRC,13/09/2023,Rent (Irrec VAT),Estates,TELFORD PLAZA UK LTD,5100035258,"4,014.37",Rent (Irrec VAT),W8 5UA
HMRC,HMRC,13/09/2023,Rent (Irrec VAT),Estates,TELFORD PLAZA UK LTD,5100035258,"24,659.71",Rent (Irrec VAT),W8 5UA
HMRC,HMRC,13/09/2023,Rent (Irrec VAT),Estates,TELFORD PLAZA UK LTD,5100035259,"4,682.59",Rent (Irrec VAT),W8 5UA
HMRC,HMRC,13/09/2023,Rent (Irrec VAT),Estates,TELFORD PLAZA UK LTD,5100035259,"28,764.48",Rent (Irrec VAT),W8 5UA
HMRC,HMRC,13/09/2023,Rent (Irrec VAT),Estates,TELFORD PLAZA UK LTD,5100035261,"4,318.18",Rent (Irrec VAT),W8 5UA
HMRC,HMRC,13/09/2023,Rent (Irrec VAT),Estates,TELFORD PLAZA UK LTD,5100035261,"26,525.95",Rent (Irrec VAT),W8 5UA
HMRC,HMRC,13/09/2023,Rent (Irrec VAT),Estates,TELFORD PLAZA UK LTD,5100035293,"4,682.59",Rent (Irrec VAT),W8 5UA
HMRC,HMRC,13/09/2023,Rent (Irrec VAT),Estates,TELFORD PLAZA UK LTD,5100035293,"28,764.48",Rent (Irrec VAT),W8 5UA
HMRC,HMRC,13/09/2023,Prop. Man. (Ir VAT),Estates,SCOTTISH POLICE AUTHORITY,5100035345,"32,977.92",Prop. Man. (Ir VAT),G40 4EH
HMRC,HMRC,13/09/2023,Prop. Man. (Ir VAT),Estates,SCOTTISH POLICE AUTHORITY,5100035345,"202,578.65",Prop. Man. (Ir VAT),G40 4EH
HMRC,HMRC,13/09/2023,Property mgmt. ser.,Estates,LAMBERT SMITH HAMPTON,5100035346,"2,065.06",Property management services,NG1 5FS
HMRC,HMRC,13/09/2023,Facility rental,Estates,LAMBERT SMITH HAMPTON,5100035346,"3,139.95",Facility rental,NG1 5FS
HMRC,HMRC,13/09/2023,Property mgmt. ser.,Estates,LAMBERT SMITH HAMPTON,5100035346,"11,702.01",Property management services,NG1 5FS
HMRC,HMRC,13/09/2023,Facility rental,Estates,LAMBERT SMITH HAMPTON,5100035346,"17,793.05",Facility rental,NG1 5FS
HMRC,HMRC,13/09/2023,IT Security Vetting,CDIO - Core,CABINET OFFICE,5100035360,"728,258.00",IT Security Vetting,FY1 9JN
HMRC,HMRC,13/09/2023,Counsel Fee VAT Irre,Solicitor's Office & Legal Services,JOHN BRINSMEAD-STOCKHAM KC,5100035368,"25,068.00",Counsel Fee VAT Irre,WC2A 3QB
HMRC,HMRC,13/09/2023,Electricity,CDIO - Core,Crown Hosting Data Centres Ltd,5100035370,"46,626.80",Electricity,SN13 9GB
HMRC,HMRC,13/09/2023,Contin Labor Run,HMRC Security,BSI CYBERSECURITY AND INFORMATION,5100035372,"33,000.00",Contin Labor Run,MK5 8PP
HMRC,HMRC,13/09/2023,Electricity,CDIO - Core,Crown Hosting Data Centres Ltd,5100035375,"47,979.02",Electricity,SN13 9GB
HMRC,HMRC,13/09/2023,Research (VAT rec),Knowledge Analysis & Intelligence,KANTAR PUBLIC UK LTD,5100035383,"30,559.00",Research Services ,SW1P 3JA
HMRC,HMRC,13/09/2023,Contin Labor Run,HMRC Security,BSI CYBERSECURITY AND INFORMATION,5100035386,"29,580.00",Contin Labor Run,MK5 8PP
HMRC,HMRC,13/09/2023,Contin Labor Run,HMRC Security,BSI CYBERSECURITY AND INFORMATION,5100035388,"33,000.00",Contin Labor Run,MK5 8PP
HMRC,HMRC,13/09/2023,Contin Labor Run,HMRC Security,BSI CYBERSECURITY AND INFORMATION,5100035392,"31,320.00",Contin Labor Run,MK5 8PP
HMRC,HMRC,13/09/2023,Counsel Fee VAT Irre,Solicitor's Office & Legal Services,ELENI MITROPHANOUS KC,5100035393,"25,290.00",Counsel Fee VAT Irre,WC1R 5LN
HMRC,HMRC,13/09/2023,PROJECT Mandays Supp,B&T Border Change Delivery,COGNIZANT,5100035397,"41,346.00",Customs Declaration Service Contractor Costs,W2 6BD
HMRC,HMRC,13/09/2023,Legal Solicitors fee,HR,GOVERNMENT LEGAL DEPARTMENT,5100035398,"105,422.47",Legal Solicitors fee,SW1H 9GL
HMRC,HMRC,13/09/2023,Prop. Man. (Ir VAT),Estates,Workman Holding Account,5100035407,"6,402.10",Prop. Man. (Ir VAT),EC2V 6EE
HMRC,HMRC,13/09/2023,Prop. Man. (Ir VAT),Estates,Workman Holding Account,5100035407,"39,327.19",Prop. Man. (Ir VAT),EC2V 6EE
HMRC,HMRC,13/09/2023,Rent (Irrec VAT),Estates,Workman Holding Account,5100035407,"199,145.94",Rent (Irrec VAT),EC2V 6EE
HMRC,HMRC,13/09/2023,Rent (Irrec VAT),Estates,Workman Holding Account,5100035407,"1,223,325.05",Rent (Irrec VAT),EC2V 6EE
HMRC,HMRC,13/09/2023,PROJECT Mandays Supp,CDIO - Core,ACCENTURE (UK) LTD,5100035408,"53,138.19",PROJECT Mandays Supp,EC3M 3BD
HMRC,HMRC,13/09/2023,PROJECT Mandays Supp,CDIO - Core,ACCENTURE (UK) LTD,5100035416,"22,188.00",PROJECT Mandays Supp,EC3M 3BD
HMRC,HMRC,13/09/2023,Rent (Irrec VAT),Estates,Workman Holding Account,5100035426,"141,711.19",Rent (Irrec VAT),EC2V 6EE
HMRC,HMRC,13/09/2023,Rent (Irrec VAT),Estates,Workman Holding Account,5100035426,"221,650.83",Rent (Irrec VAT),EC2V 6EE
HMRC,HMRC,13/09/2023,Rent (Irrec VAT),Estates,Workman Holding Account,5100035429,"114,683.72",Rent (Irrec VAT),EC2V 6EE
HMRC,HMRC,13/09/2023,Rent (Irrec VAT),Estates,Workman Holding Account,5100035429,"179,377.11",Rent (Irrec VAT),EC2V 6EE
HMRC,HMRC,13/09/2023,Rent (Irrec VAT),Estates,Workman Holding Account,5100035433,"290,402.08",Rent (Irrec VAT),EC2V 6EE
HMRC,HMRC,13/09/2023,Rent (Irrec VAT),Estates,Workman Holding Account,5100035433,"454,218.63",Rent (Irrec VAT),EC2V 6EE
HMRC,HMRC,13/09/2023,Rent (Irrec VAT),Estates,Workman Holding Account,5100035436,"87,041.00",Rent (Irrec VAT),EC2V 6EE
HMRC,HMRC,13/09/2023,Rent (Irrec VAT),Estates,Workman Holding Account,5100035436,"136,141.06",Rent (Irrec VAT),EC2V 6EE
HMRC,HMRC,13/09/2023,Rent (Irrec VAT),Estates,Workman Holding Account,5100035439,"86,970.57",Rent (Irrec VAT),EC2V 6EE
HMRC,HMRC,13/09/2023,Rent (Irrec VAT),Estates,Workman Holding Account,5100035439,"136,030.87",Rent (Irrec VAT),EC2V 6EE
HMRC,HMRC,13/09/2023,Rent (Irrec VAT),Estates,Workman Holding Account,5100035443,"87,074.80",Rent (Irrec VAT),EC2V 6EE
HMRC,HMRC,13/09/2023,Rent (Irrec VAT),Estates,Workman Holding Account,5100035443,"136,193.90",Rent (Irrec VAT),EC2V 6EE
HMRC,HMRC,13/09/2023,PROJECT Mandays HMRC,CDIO - Core,COGNIZANT,5100035447,"116,998.20",PROJECT Mandays HMRC,W2 6BD
HMRC,HMRC,13/09/2023,Rent (Irrec VAT),Estates,Workman Holding Account,5100035450,"53,767.76",Rent (Irrec VAT),EC2V 6EE
HMRC,HMRC,13/09/2023,Rent (Irrec VAT),Estates,Workman Holding Account,5100035450,"84,098.31",Rent (Irrec VAT),EC2V 6EE
HMRC,HMRC,14/09/2023,Utility Payments - electricity,Estates,Inspired Energy plc,1700014696,"-64,135.34",Utility Payments - electricity,PR4 2TZ
HMRC,HMRC,14/09/2023,Utility Payments - electricity,Estates,Inspired Energy plc,1700014697,"-65,011.65",Utility Payments - electricity,PR4 2TZ
HMRC,HMRC,14/09/2023,Utility Payments - electricity,Estates,Inspired Energy plc,1700014699,"-85,957.61",Utility Payments - electricity,PR4 2TZ
HMRC,HMRC,14/09/2023,Utility Payments - electricity,Estates,Inspired Energy plc,1700014701,"-100,876.44",Utility Payments - electricity,PR4 2TZ
HMRC,HMRC,14/09/2023,Utility Payments - electricity,Estates,Inspired Energy plc,1700014705,"-91,758.46",Utility Payments - electricity,PR4 2TZ
HMRC,HMRC,14/09/2023,Utility Payments - electricity,Estates,Inspired Energy plc,1700014707,"-34,001.74",Utility Payments - electricity,PR4 2TZ
HMRC,HMRC,14/09/2023,Utility Payments - electricity,Estates,Inspired Energy plc,1700014708,"-31,674.75",Utility Payments - electricity,PR4 2TZ
HMRC,HMRC,14/09/2023,Utility Payments - electricity,Estates,Inspired Energy plc,1700014714,"-29,641.43",Utility Payments - electricity,PR4 2TZ
HMRC,HMRC,14/09/2023,Utility Payments - electricity,Estates,Inspired Energy plc,1700014715,"-60,694.89",Utility Payments - electricity,PR4 2TZ
HMRC,HMRC,14/09/2023,Desktop Services,CDIO - Core,FUJITSU SERVICES LTD,1900307365,"52,003.65",Desktop Services,WA3 6GD
HMRC,HMRC,14/09/2023,Desktop Services,CDIO - Core,FUJITSU SERVICES LTD,1900307366,"41,740.62",Desktop Services,WA3 6GD
HMRC,HMRC,14/09/2023,Desktop Services,CDIO - Core,FUJITSU SERVICES LTD,1900307367,"155,935.42",Desktop Services,WA3 6GD
HMRC,HMRC,14/09/2023,Desktop Services,CDIO - Core,FUJITSU SERVICES LTD,1900307369,"187,226.18",Desktop Services,WA3 6GD
HMRC,HMRC,14/09/2023,Desktop Services,CDIO - Core,FUJITSU SERVICES LTD,1900307371,"147,236.38",Desktop Services,WA3 6GD
HMRC,HMRC,14/09/2023,Desktop Services,CDIO - Core,FUJITSU SERVICES LTD,1900307372,"59,391.87",Desktop Services,WA3 6GD
HMRC,HMRC,14/09/2023,Desktop Services,CDIO - Core,FUJITSU SERVICES LTD,1900307375,"54,753.42",Desktop Services,WA3 6GD
HMRC,HMRC,14/09/2023,Desktop Services,CDIO - Core,FUJITSU SERVICES LTD,1900307378,"166,484.59",Desktop Services,WA3 6GD
HMRC,HMRC,14/09/2023,Desktop Services,CDIO - Core,FUJITSU SERVICES LTD,1900307382,"416,666.67",Desktop Services,WA3 6GD
HMRC,HMRC,14/09/2023,Desktop Services,CDIO - Core,FUJITSU SERVICES LTD,1900307383,"274,548.93",Desktop Services,WA3 6GD
HMRC,HMRC,14/09/2023,Desktop Services,CDIO - Core,FUJITSU SERVICES LTD,1900307384,"61,677.31",Desktop Services,WA3 6GD
HMRC,HMRC,14/09/2023,Project Development,CDIO - Core,MADE TECH LTD,1900307426,"83,171.36",Project Development,EC2A 4NE
HMRC,HMRC,14/09/2023,Project Development,CDIO - Core,MADE TECH LTD,1900307427,"91,000.00",Project Development,EC2A 4NE
HMRC,HMRC,14/09/2023,Utility Payments - electricity,Estates,Inspired Energy plc,1900307466,"89,986.76",Utility Payments - electricity,PR4 2TZ
HMRC,HMRC,14/09/2023,Utility Payments - electricity,Estates,Inspired Energy plc,1900307469,"64,108.64",Utility Payments - electricity,PR4 2TZ
HMRC,HMRC,14/09/2023,Utility Payments - electricity,Estates,Inspired Energy plc,1900307470,"65,532.61",Utility Payments - electricity,PR4 2TZ
HMRC,HMRC,14/09/2023,Utility Payments - electricity,Estates,Inspired Energy plc,1900307477,"65,893.74",Utility Payments - electricity,PR4 2TZ
HMRC,HMRC,14/09/2023,Utility Payments - electricity,Estates,Inspired Energy plc,1900307478,"31,869.64",Utility Payments - electricity,PR4 2TZ
HMRC,HMRC,14/09/2023,Utility Payments - electricity,Estates,Inspired Energy plc,1900307482,"86,014.46",Utility Payments - electricity,PR4 2TZ
HMRC,HMRC,14/09/2023,Utility Payments - electricity,Estates,Inspired Energy plc,1900307486,"47,312.65",Utility Payments - electricity,PR4 2TZ
HMRC,HMRC,14/09/2023,Utility Payments - electricity,Estates,Inspired Energy plc,1900307488,"86,882.91",Utility Payments - electricity,PR4 2TZ
HMRC,HMRC,14/09/2023,Utility Payments - electricity,Estates,Inspired Energy plc,1900307491,"100,203.54",Utility Payments - electricity,PR4 2TZ
HMRC,HMRC,14/09/2023,Utility Payments - electricity,Estates,Inspired Energy plc,1900307492,"98,008.17",Utility Payments - electricity,PR4 2TZ
HMRC,HMRC,14/09/2023,Utility Payments - electricity,Estates,Inspired Energy plc,1900307504,"30,508.36",Utility Payments - electricity,PR4 2TZ
HMRC,HMRC,14/09/2023,Utility Payments - electricity,Estates,Inspired Energy plc,1900307512,"36,491.60",Utility Payments - electricity,PR4 2TZ
HMRC,HMRC,14/09/2023,Utility Payments - electricity,Estates,Inspired Energy plc,1900307514,"52,775.78",Utility Payments - electricity,PR4 2TZ
HMRC,HMRC,14/09/2023,Utility Payments - electricity,Estates,Inspired Energy plc,1900307515,"257,536.14",Utility Payments - electricity,PR4 2TZ
HMRC,HMRC,14/09/2023,Utility Payments - electricity,Estates,Inspired Energy plc,1900307518,"68,399.81",Utility Payments - electricity,PR4 2TZ
HMRC,HMRC,14/09/2023,Utility Payments - electricity,Estates,Inspired Energy plc,1900307520,"91,992.32",Utility Payments - electricity,PR4 2TZ
HMRC,HMRC,14/09/2023,Utility Payments - electricity,Estates,Inspired Energy plc,1900307521,"92,320.55",Utility Payments - electricity,PR4 2TZ
HMRC,HMRC,14/09/2023,Utility Payments - electricity,Estates,Inspired Energy plc,1900307523,"34,091.14",Utility Payments - electricity,PR4 2TZ
HMRC,HMRC,14/09/2023,Utility Payments - electricity,Estates,Inspired Energy plc,1900307524,"32,032.72",Utility Payments - electricity,PR4 2TZ
HMRC,HMRC,14/09/2023,Utility Payments - electricity,Estates,Inspired Energy plc,1900307525,"68,060.55",Utility Payments - electricity,PR4 2TZ
HMRC,HMRC,14/09/2023,Utility Payments - electricity,Estates,Inspired Energy plc,1900307531,"69,878.11",Utility Payments - electricity,PR4 2TZ
HMRC,HMRC,14/09/2023,Utility Payments - electricity,Estates,Inspired Energy plc,1900307532,"68,849.15",Utility Payments - electricity,PR4 2TZ
HMRC,HMRC,14/09/2023,Utility Payments - electricity,Estates,Inspired Energy plc,1900307534,"66,141.92",Utility Payments - electricity,PR4 2TZ
HMRC,HMRC,14/09/2023,Utility Payments - electricity,Estates,Inspired Energy plc,1900307537,"29,820.69",Utility Payments - electricity,PR4 2TZ
HMRC,HMRC,14/09/2023,Utility Payments - electricity,Estates,Inspired Energy plc,1900307538,"30,182.13",Utility Payments - electricity,PR4 2TZ
HMRC,HMRC,14/09/2023,Utility Payments - electricity,Estates,Inspired Energy plc,1900307539,"96,778.84",Utility Payments - electricity,PR4 2TZ
HMRC,HMRC,14/09/2023,Utility Payments - electricity,Estates,Inspired Energy plc,1900307540,"60,687.33",Utility Payments - electricity,PR4 2TZ
HMRC,HMRC,14/09/2023,Utility Payments - electricity,Estates,Inspired Energy plc,1900307541,"58,960.77",Utility Payments - electricity,PR4 2TZ
HMRC,HMRC,14/09/2023,Utility Payments - water,Estates,Inspired Energy plc,1900307586,"41,816.80",Utility Payments - water,PR4 2TZ
HMRC,HMRC,14/09/2023,PROJECT Mandays Supp,CCG Transformation Programmes,SAS SOFTWARE LTD,5100033195,"129,079.22",PROJECT Mandays Supp,SL7 2EB
HMRC,HMRC,14/09/2023,PROJECT Mandays Supp,CCG Transformation Programmes,SAS SOFTWARE LTD,5100034250,"136,780.04",PROJECT Mandays Supp,SL7 2EB
HMRC,HMRC,14/09/2023,PROJECT Mandays Supp,CDIO - Core,BRITISH TELECOMMUNICATIONS PLC,5100034333,"30,103.31",PROJECT Mandays Supp,E1 8EE
HMRC,HMRC,14/09/2023,Rent (Irrec VAT),Estates,Workman Holding Account,5100035451,"559,863.95",Rent (Irrec VAT),EC2V 6EE
HMRC,HMRC,14/09/2023,Rent (Irrec VAT),Estates,Workman Holding Account,5100035451,"875,684.63",Rent (Irrec VAT),EC2V 6EE
HMRC,HMRC,14/09/2023,Maintenance fees,Debt Management,CAPGEMINI,5100035452,"27,342.68",Maintenance fees,TF3 3BD
HMRC,HMRC,14/09/2023,SW Lic Sup Off shlf,CDIO - Core,BYTES SOFTWARE SERVICES LTD,5100035470,"273,646.68",SW Lic Sup Off shlf,KT22 7TW
HMRC,HMRC,14/09/2023,PROJECT Mandays Supp,Customs Policy and Strategy,ACCENTURE (UK) LTD,5100035478,"51,962.67",PROJECT Mandays Supp,EC3M 3BD
HMRC,HMRC,14/09/2023,Rent (Irrec VAT),Estates,Workman Holding Account,5100035485,"10,331.42",Rent (Irrec VAT),EC2V 6EE
HMRC,HMRC,14/09/2023,Rent (Irrec VAT),Estates,Workman Holding Account,5100035485,"75,763.76",Rent (Irrec VAT),EC2V 6EE
HMRC,HMRC,14/09/2023,Rent (Irrec VAT),Estates,Workman Holding Account,5100035485,"330,196.73",Rent (Irrec VAT),EC2V 6EE
HMRC,HMRC,14/09/2023,Rent (Irrec VAT),Estates,Workman Holding Account,5100035485,"587,016.41",Rent (Irrec VAT),EC2V 6EE
HMRC,HMRC,14/09/2023,Sol's Enforcement,Operational Excellence & Output Mgmt,PINSENT MASONS SOLICITORS,5100035486,"27,533.10",Sol's Enforcement,EC2A 4ES
HMRC,HMRC,14/09/2023,PROJECT Mandays Supp,Border Service Data and Design,ACCENTURE (UK) LTD,5100035487,"239,591.64",Contingent Labour,EC3M 3BD
HMRC,HMRC,14/09/2023,WAN maint or supp,CDIO - Core,HIGHSPEED OFFICE LTD,5100035489,"471,822.33",WAN maint or supp,E1 8HQ
HMRC,HMRC,14/09/2023,Rent (Irrec VAT),Estates,FI REAL ESTATE MANAGEMENT LTD,5100035490,"7,076.51",Rent (Irrec VAT),PR6 9AF
HMRC,HMRC,14/09/2023,Rent (Irrec VAT),Estates,FI REAL ESTATE MANAGEMENT LTD,5100035490,"43,469.96",Rent (Irrec VAT),PR6 9AF
HMRC,HMRC,14/09/2023,Soft Licen Integral,Transformation DG & Programme Office,SAP (UK) LTD,5100035493,"328,629.89",DCA SAP licences,TW14 8HD
HMRC,HMRC,14/09/2023,Prop. Man. (Ir VAT),Estates,Frank Knight LLP,5100035500,"5,927.68",Prop. Man. (Ir VAT),M2 1HW
HMRC,HMRC,14/09/2023,Prop. Man. (Ir VAT),Estates,Frank Knight LLP,5100035500,"27,003.82",Prop. Man. (Ir VAT),M2 1HW
HMRC,HMRC,14/09/2023,PROJECT Mandays Supp,CDIO - Core,CAPGEMINI,5100035510,"49,216.20",PROJECT Mandays Supp,TF3 3BD
HMRC,HMRC,14/09/2023,PROJECT Mandays HMRC,Compliance Operations Directorate,CAPGEMINI,5100035515,"51,715.00",PROJECT Mandays HMRC,TF3 3BD
HMRC,HMRC,14/09/2023,PROJECT Mandays Supp,Programme and Operational Delivery,ACCENTURE (UK) LTD,5100035516,"229,314.00",PROJECT Mandays Supp,EC3M 3BD
HMRC,HMRC,14/09/2023,Research (VAT rec),Knowledge Analysis & Intelligence,NATIONAL CENTRE FOR SOCIAL RESEARCH,5100035671,"49,643.00",Research Services ,EC1V 0AX
HMRC,HMRC,14/09/2023,Legal Solicitors fee,HR,GOVERNMENT LEGAL DEPARTMENT,5100035676,"30,538.40",Legal Solicitors fee,SW1H 9GL
HMRC,HMRC,14/09/2023,PROJECT Mandays Supp,CDIO Transformation Programmes,CAPGEMINI,5100035701,"235,632.70",PROJECT Mandays Supp,TF3 3BD
HMRC,HMRC,14/09/2023,PROJECT Mandays Supp,B&T Border Change Delivery,CGI IT UK LTD,5100035702,"23,294.25",Customs Declaration Service Contractor Costs,CF31 9AP
HMRC,HMRC,14/09/2023,PROJECT Mandays Supp,CDIO - Core,CAPGEMINI,5100035710,"363,142.49",PROJECT Mandays Supp,TF3 3BD
HMRC,HMRC,14/09/2023,Facilities Mngmnt,Estates,SERVEST GROUP LTD,5100035711,"3,804.02",Facilities Mngmnt,IP28 6LG
HMRC,HMRC,14/09/2023,Facilities Mngmnt,Estates,SERVEST GROUP LTD,5100035711,"23,367.56",Facilities Mngmnt,IP28 6LG
HMRC,HMRC,14/09/2023,Soft FM Services,Estates,SERVEST GROUP LTD,5100035712,"64,136.15",Soft FM Services,IP28 6LG
HMRC,HMRC,14/09/2023,Soft FM Services,Estates,SERVEST GROUP LTD,5100035712,"393,979.24",Soft FM Services,IP28 6LG
HMRC,HMRC,14/09/2023,PROJECT Mandays Supp,CDIO - Core,CAPGEMINI,5100035716,"61,172.27",PROJECT Mandays Supp,TF3 3BD
HMRC,HMRC,14/09/2023,PROJECT Mandays Supp,CCG Transformation Programmes,CAPGEMINI,5100035716,"142,222.34",PROJECT Mandays Supp,TF3 3BD
HMRC,HMRC,14/09/2023,PROJECT Mandays Supp,B&T Border Change Delivery,SPECIALIST COMPUTER CTR,5100035719,"94,174.28",Customs Declaration Service Contractor Costs,B11 2LE
HMRC,HMRC,14/09/2023,PROJECT Mandays Supp,B&T Border Change Delivery,FUJITSU SERVICES LTD,5100035721,"167,402.06",PVT Team for CHIEF sustainment,WA3 6GD
HMRC,HMRC,14/09/2023,Prop. Man. (Ir VAT),Estates,Jones Lang LaSalle Property Acc,5100041429,93.42,Prop. Man. (Ir VAT),E14 5WQ
HMRC,HMRC,14/09/2023,Rent (Irrec VAT),Estates,Jones Lang LaSalle Property Acc,5100041429,"3,237.89",Rent (Irrec VAT),E14 5WQ
HMRC,HMRC,14/09/2023,Prop. Man. (Ir VAT),Estates,Jones Lang LaSalle Property Acc,5100041429,"4,577.58",Prop. Man. (Ir VAT),E14 5WQ
HMRC,HMRC,14/09/2023,Rent (Irrec VAT),Estates,Jones Lang LaSalle Property Acc,5100041429,"158,656.22",Rent (Irrec VAT),E14 5WQ
HMRC,HMRC,15/09/2023,Minor New Works,Strat Planning Customer & Infrastructure,SCHEIDT&BACHMANN,1900307668,"31,127.06",Inland Border Facility - Reinstatement Costs,KT9 2QL
HMRC,HMRC,15/09/2023,Cycle Purchase for Staff - Cycle to Work Scheme,HMRC,EDENRED (UK GROUP) LTD (CYCLE TO WO,1900307705,"113,274.44",Cycle Purchase for Staff - Cycle to Work Scheme,SW1V 2RS
HMRC,HMRC,15/09/2023,System Maintenance,CDIO - Core,CAPGEMINI,1900309682,"176,451.28",System Maintenance,TF3 3BD
HMRC,HMRC,15/09/2023,Contact Platform Ser,CDIO - Core,NUANCE COMMUNICATIONS IRELAND LTD,5100034666,"71,225.00",Contact Platform Ser,D02 F721
HMRC,HMRC,15/09/2023,Contact Platform Ser,CDIO - Core,NUANCE COMMUNICATIONS IRELAND LTD,5100034684,"256,331.19",Contact Platform Ser,D02 F721
HMRC,HMRC,15/09/2023,PROJECT Mandays Supp,CDIO - Core,CAPGEMINI,5100035724,"50,602.18",PROJECT Mandays Supp,TF3 3BD
HMRC,HMRC,15/09/2023,SW Lic Sup Off shlf,CDIO - Core,CAPGEMINI,5100035727,"34,837.18",SW Lic Sup Off shlf,TF3 3BD
HMRC,HMRC,15/09/2023,PROJECT Mandays HMRC,CDIO - Core,CAPGEMINI,5100035741,"41,166.73",PROJECT Mandays HMRC,TF3 3BD
HMRC,HMRC,15/09/2023,PROJECT Mandays Supp,Transformation Making Tax Digital,ACCENTURE (UK) LTD,5100035743,"46,154.22",PROJECT Mandays Supp,EC3M 3BD
HMRC,HMRC,15/09/2023,PROJECT Mandays Supp,Transformation Making Tax Digital,ACCENTURE (UK) LTD,5100035743,"168,532.28",PROJECT Mandays HMRC,EC3M 3BD
HMRC,HMRC,15/09/2023,Maintenance fees,CDIO - Core,CXM QUADIENT UK,5100035749,"259,755.72",Maintenance fees,E15 2GW
HMRC,HMRC,15/09/2023,PROJECT Mandays Supp,PDC Customer Strategy & Tax Design,ATOS IT SERVICES UK LTD,5100035762,"27,689.67",Software Build/Test,WC1V 6EA
HMRC,HMRC,15/09/2023,Soft FM Services,Estates,SODEXO LTD,5100035763,"12,871.87",Soft FM Services,M50 2UE
HMRC,HMRC,15/09/2023,Soft FM Services,Estates,SODEXO LTD,5100035763,"79,070.05",Soft FM Services,M50 2UE
HMRC,HMRC,15/09/2023,Soft FM Services,Estates,SODEXO LTD,5100035769,"10,686.14",Soft FM Services,M50 2UE
HMRC,HMRC,15/09/2023,Soft FM Services,Estates,SODEXO LTD,5100035769,"65,643.43",Soft FM Services,M50 2UE
HMRC,HMRC,15/09/2023,PROJECT Mandays HMRC,Government Banking and Payments,CAPGEMINI,5100035770,"44,050.35",PROJECT Mandays HMRC,TF3 3BD
HMRC,HMRC,15/09/2023,PROJECT Mandays Supp,Transformation DG & Programme Office,ACCENTURE (UK) LTD,5100035772,"198,539.91",PROJECT Mandays Supp,EC3M 3BD
HMRC,HMRC,15/09/2023,Consultancy � IT,Transformation DG & Programme Office,COGNIZANT,5100035776,"33,908.00",Milestone 6 - Aug 23 - NPSWM TFC ,W2 6BD
HMRC,HMRC,15/09/2023,WAN maint or supp,CDIO - Core,HIGHSPEED OFFICE LTD,5100035782,"421,440.00",WAN maint or supp,E1 8HQ
HMRC,HMRC,15/09/2023,Projects VAT irrec,Programme and Operational Delivery,FUJITSU SERVICES LTD,5100035789,"385,141.15",Projects VAT irrec,WA3 6GD
HMRC,HMRC,15/09/2023,Projects VAT irrec,Programme and Operational Delivery,FUJITSU SERVICES LTD,5100035791,"6,338,105.53",Projects VAT irrec,WA3 6GD
HMRC,HMRC,15/09/2023,PROJECT Mandays Supp,Programme and Operational Delivery,EQUAL EXPERTS UK LTD,5100035792,"244,234.62",PROJECT Mandays Supp,AL1 5HE
HMRC,HMRC,15/09/2023,PROJECT Mandays Supp,CDIO - Core,CAPGEMINI,5100035797,"623,203.62",PROJECT Mandays Supp,TF3 3BD
HMRC,HMRC,15/09/2023,PROJECT Mandays Supp,B&T Border Change Delivery,CAPGEMINI,5100035799,"167,241.08",Customs Declaration Service Contractor Costs,TF3 3BD
HMRC,HMRC,15/09/2023,PROJECT Mandays Supp,CDIO - Core,CAPGEMINI,5100035800,"255,065.67",PROJECT Mandays Supp,TF3 3BD
HMRC,HMRC,15/09/2023,Projects VAT irrec,Programme and Operational Delivery,FUJITSU SERVICES LTD,5100035801,"478,644.00",Projects VAT irrec,WA3 6GD
HMRC,HMRC,15/09/2023,Projects VAT irrec,Programme and Operational Delivery,FUJITSU SERVICES LTD,5100035803,"1,106,613.60",Projects VAT irrec,WA3 6GD
HMRC,HMRC,15/09/2023,Projects VAT irrec,Programme and Operational Delivery,FUJITSU SERVICES LTD,5100035804,"1,106,613.60",Projects VAT irrec,WA3 6GD
HMRC,HMRC,15/09/2023,PROJECT Mandays Supp,B&T Border Change Delivery,FUJITSU SERVICES LTD,5100035805,"77,803.02",Decoupling for Delivery,WA3 6GD
HMRC,HMRC,15/09/2023,PROJECT Mandays Supp,CDIO - Core,CAPGEMINI,5100035807,"232,872.88",PROJECT Mandays Supp,TF3 3BD
HMRC,HMRC,15/09/2023,PROJECT Mandays Supp,B&T Border Change Delivery,COGNIZANT,5100035810,"53,615.06",Trader Data 3rd party supplier DPS costs,W2 6BD
HMRC,HMRC,15/09/2023,PROJECT Mandays Supp,B&T Border Change Delivery,CAPGEMINI,5100035812,"36,845.39",Trader data daily contractor costs,TF3 3BD
HMRC,HMRC,15/09/2023,PROJECT Mandays Supp,CDIO - Core,CAPGEMINI,5100035813,"931,981.81",PROJECT Mandays Supp,TF3 3BD
HMRC,HMRC,15/09/2023,PROJECT Mandays Supp,B&T Border Change Delivery,COGNIZANT,5100035816,"32,690.81",Customs Declaration Service Contractor Costs,W2 6BD
HMRC,HMRC,15/09/2023,PROJECT Mandays Supp,B&T Border Change Delivery,Automation Logic,5100035879,"181,350.00",Customs Declaration Service Contractor Costs,EC3V 1LP
HMRC,HMRC,15/09/2023,Research (VAT rec),Knowledge Analysis & Intelligence,KANTAR PUBLIC UK LTD,5100035913,"49,635.68",Research Services ,SW1P 3JA
HMRC,HMRC,15/09/2023,Projects Rec VAT,CFO Transformation Programmes,ARCADIS Consulting UK Ltd,5100035914,"25,000.00",Projects Rec VAT,EC3M 4BY
HMRC,HMRC,15/09/2023,Multifunction machin,Programme and Operational Delivery,RED FROG HIRE LTD,5100035945,"55,401.60",Inland Border Facility - Running Costs,HU3 4UW
HMRC,HMRC,15/09/2023,Soft FM Services,Estates,SERVEST GROUP LTD,5100035948,"13,014.51",Soft FM Services,IP28 6LG
HMRC,HMRC,15/09/2023,Soft FM Services,Estates,SERVEST GROUP LTD,5100035948,"79,946.26",Soft FM Services,IP28 6LG
HMRC,HMRC,15/09/2023,Hardware maintenance,CDIO - Core,AVANADE UK LTD,5100035953,"64,650.43",Hardware maintenance,EC4M 6XH
HMRC,HMRC,18/09/2023,Minor New Works,Programme and Operational Delivery,SODEXO LTD,1900309750,"2,050.91",Inland Border Facility - Running Costs,M50 2UE
HMRC,HMRC,18/09/2023,Recruitment,Programme and Operational Delivery,SODEXO LTD,1900309750,"8,773.53",Inland Border Facility - Running Costs,M50 2UE
HMRC,HMRC,18/09/2023,Equipment & Machinery,Programme and Operational Delivery,SODEXO LTD,1900309750,"20,611.98",Inland Border Facility - Running Costs,M50 2UE
HMRC,HMRC,18/09/2023,Uniforms & PPE,Programme and Operational Delivery,SODEXO LTD,1900309750,"25,786.60",Inland Border Facility - Running Costs,M50 2UE
HMRC,HMRC,18/09/2023,IT Software Licenses and Support,Programme and Operational Delivery,SODEXO LTD,1900309750,"27,297.04",Inland Border Facility - Running Costs,M50 2UE
HMRC,HMRC,18/09/2023,Facilities Management -Hard FM,Programme and Operational Delivery,SODEXO LTD,1900309750,"193,855.33",Inland Border Facility - Running Costs,M50 2UE
HMRC,HMRC,18/09/2023,Professional Services - Property Services,Programme and Operational Delivery,SODEXO LTD,1900309750,"468,124.10",Inland Border Facility - Running Costs,M50 2UE
HMRC,HMRC,18/09/2023,Projects,Programme and Operational Delivery,SODEXO LTD,1900309750,"759,640.84",Inland Border Facility - Running Costs,M50 2UE
HMRC,HMRC,18/09/2023,Accommodation Security Services,Programme and Operational Delivery,SODEXO LTD,1900309750,"1,106,371.33",Inland Border Facility - Running Costs,M50 2UE
HMRC,HMRC,18/09/2023,Recruitment,Programme and Operational Delivery,SODEXO LTD,1900309752,81.47,Inland Border Facility - Running Costs,M50 2UE
HMRC,HMRC,18/09/2023,Equipment & Machinery,Programme and Operational Delivery,SODEXO LTD,1900309752,"8,321.81",Inland Border Facility - Running Costs,M50 2UE
HMRC,HMRC,18/09/2023,Facilities Management -Hard FM,Programme and Operational Delivery,SODEXO LTD,1900309752,"16,423.92",Inland Border Facility - Running Costs,M50 2UE
HMRC,HMRC,18/09/2023,IT Software Licenses and Support,Programme and Operational Delivery,SODEXO LTD,1900309752,"20,727.40",Inland Border Facility - Running Costs,M50 2UE
HMRC,HMRC,18/09/2023,Projects,Programme and Operational Delivery,SODEXO LTD,1900309752,"135,946.28",Inland Border Facility - Running Costs,M50 2UE
HMRC,HMRC,18/09/2023,Accommodation Security Services,Programme and Operational Delivery,SODEXO LTD,1900309752,"142,659.28",Inland Border Facility - Running Costs,M50 2UE
HMRC,HMRC,18/09/2023,Outhousing seized goods,Individuals & Small Business Compliance,Wincanton Group PLC,1900309822,"773,636.26",Outhousing seized goods,SN14 0WT
HMRC,HMRC,18/09/2023,Project Development,CDIO - Core,OPENCAST SOFTWARE EUROPE LTD,1900309856,"635,420.00",Project Development,NE6 1AB
HMRC,HMRC,18/09/2023,Project Development,CDIO - Core,ACCENTURE (UK) LTD,1900309858,"563,121.33",Project Development,EC3M 3BD
HMRC,HMRC,18/09/2023,PROJECT Mandays Supp,Programme and Operational Delivery,ACCENTURE (UK) LTD,5100035972,"281,200.31",PROJECT Mandays Supp,EC3M 3BD
HMRC,HMRC,18/09/2023,PROJECT Mandays Supp,Programme and Operational Delivery,ACCENTURE (UK) LTD,5100035982,"13,949.44",PROJECT Mandays Supp,EC3M 3BD
HMRC,HMRC,18/09/2023,PROJECT Mandays Supp,Programme and Operational Delivery,ACCENTURE (UK) LTD,5100035982,"125,544.94",PROJECT Mandays Supp,EC3M 3BD
HMRC,HMRC,18/09/2023,Radio ancillaries,Fraud Investigation Service,SONIC COMMUNICATIONS (INT) LTD,5100035989,"82,446.00",Radio ancillaries,B37 7HB
HMRC,HMRC,18/09/2023,PROJECT Mandays Supp,B&T Border Change Delivery,COGNIZANT,5100035993,"86,066.08",PROJECT Mandays Supp,W2 6BD
HMRC,HMRC,18/09/2023,PROJECT Mandays Supp,CDIO - Core,CAPGEMINI,5100035995,"143,534.93",PROJECT Mandays Supp,TF3 3BD
HMRC,HMRC,18/09/2023,PROJECT Mandays Supp,CDIO - Core,CAPGEMINI,5100035996,"1,878,734.74",PROJECT Mandays Supp,TF3 3BD
HMRC,HMRC,18/09/2023,PROJECT Mandays Supp,CDIO - Core,CAPGEMINI,5100035999,"976,309.88",PROJECT Mandays Supp,TF3 3BD
HMRC,HMRC,18/09/2023,Legal Ser. (ZR VAT),Government Banking and Payments,Eversheds Sutherland LLP,5100036004,"37,523.49",Legal Services,CB1 2JY
HMRC,HMRC,18/09/2023,PROJECT Mandays HMRC,CDIO - Core,VERSION 1 SOLUTIONS LTD,5100036006,"34,686.96",PROJECT Mandays HMRC,B97 4DL
HMRC,HMRC,18/09/2023,PROJECT Mandays HMRC,CDIO - Core,VERSION 1 SOLUTIONS LTD,5100036007,"69,906.96",PROJECT Mandays HMRC,B97 4DL
HMRC,HMRC,18/09/2023,PROJECT Mandays HMRC,CDIO - Core,VERSION 1 SOLUTIONS LTD,5100036008,"33,006.96",PROJECT Mandays HMRC,B97 4DL
HMRC,HMRC,18/09/2023,PROJECT Mandays Supp,CDIO - Core,ATOS IT SERVICES UK LTD,5100036010,"21,333.56",PROJECT Mandays Supp,WC1V 6EA
HMRC,HMRC,18/09/2023,Consultancy � IT,Transformation DG & Programme Office,COGNIZANT,5100036014,"97,903.00",Consultancy � IT,W2 6BD
HMRC,HMRC,18/09/2023,PROJECT Mandays Supp,CDIO Transformation Programmes,ACCENTURE (UK) LTD,5100036020,"97,058.00",PROJECT Mandays Supp,EC3M 3BD
HMRC,HMRC,18/09/2023,PROJECT Mandays Supp,CDIO - Core,CAPGEMINI,5100036023,"276,736.70",PROJECT Mandays Supp,TF3 3BD
HMRC,HMRC,18/09/2023,PROJECT Mandays Supp,Transformation Making Tax Digital,ACCENTURE (UK) LTD,5100036024,"43,035.05",PROJECT Mandays HMRC,EC3M 3BD
HMRC,HMRC,18/09/2023,Debt coll serv (DEL),Debt Management,TDX GROUP LTD,5100036213,"63,772.04",Debt coll serv (DEL),LS1 4AP
HMRC,HMRC,18/09/2023,Rent (Irrec VAT),Estates,Spirit 120 Ltd,5100036217,"16,638.80",Rent (Irrec VAT),LE10 1QU
HMRC,HMRC,18/09/2023,Rent (Irrec VAT),Estates,Spirit 120 Ltd,5100036217,"58,992.10",Rent (Irrec VAT),LE10 1QU
HMRC,HMRC,18/09/2023,Debt coll serv (DEL),Debt Management,TDX GROUP LTD,5100036222,"108,851.70",Debt coll serv (DEL),LS1 4AP
HMRC,HMRC,18/09/2023,Rent (Irrec VAT),Estates,Teville Gate House Ltd,5100036224,"57,239.58",Rent (Irrec VAT),LE10 1QU
HMRC,HMRC,18/09/2023,Rent (Irrec VAT),Estates,Teville Gate House Ltd,5100036224,"351,614.52",Rent (Irrec VAT),LE10 1QU
HMRC,HMRC,18/09/2023,Soft FM Services,Estates,SODEXO LTD,5100036227,"66,572.58",Soft FM Services,M50 2UE
HMRC,HMRC,18/09/2023,Soft FM Services,Estates,SODEXO LTD,5100036227,"408,945.88",Soft FM Services,M50 2UE
HMRC,HMRC,18/09/2023,Consultancy � IT,Fraud Investigation Service,Amazon Web Services UK,5100036228,"26,664.34",Consultancy � IT,EC2A 2FA
HMRC,HMRC,18/09/2023,Contin Labor Build,PDC Customer Strategy & Tax Design,CAPGEMINI,5100036229,"52,973.87",Software Build/Test,TF3 3BD
HMRC,HMRC,18/09/2023,Consultancy � IT,Fraud Investigation Service,Amazon Web Services UK,5100036231,"67,677.23",Consultancy � IT,EC2A 2FA
HMRC,HMRC,18/09/2023,Debt coll serv (DEL),Debt Management,TDX GROUP LTD,5100036232,"68,632.44",Debt coll serv (DEL),LS1 4AP
HMRC,HMRC,18/09/2023,Govt bank service,Government Banking and Payments,EXELA TECHNOLOGIES LTD,5100036233,"55,904.00",Banking finance and payments,TW20 9AB
HMRC,HMRC,18/09/2023,HMRC Shared(Rec-VAT),Fraud Investigation Service,THE NATIONAL CRIME AGENCY,5100036234,"60,976.86",HMRC Shared(Rec-VAT),NW1W 9LA
HMRC,HMRC,18/09/2023,Research (VAT rec),Knowledge Analysis & Intelligence,Ipsos MORI,5100036235,"63,050.00",Research Services ,SE1 1FY
HMRC,HMRC,18/09/2023,PROJECT Mandays Supp,PDC Customer Strategy & Tax Design,ATOS IT SERVICES UK LTD,5100036241,"51,772.11",Software Build/Test,WC1V 6EA
HMRC,HMRC,18/09/2023,PROJECT Mandays Supp,CDIO - Core,CAPGEMINI,5100036245,"719,497.86",PROJECT Mandays Supp,TF3 3BD
HMRC,HMRC,18/09/2023,Debt coll serv (DEL),Debt Management,TDX GROUP LTD,5100036247,"2,404,791.86",Debt coll serv (DEL),LS1 4AP
HMRC,HMRC,18/09/2023,Rent (Irrec VAT),Estates,CBRE Limited,5100036251,"592,569.25",Rent (Irrec VAT),EC4M 7HP
HMRC,HMRC,18/09/2023,Rent (Irrec VAT),Estates,CBRE Limited,5100036251,"1,602,131.68",Rent (Irrec VAT),EC4M 7HP
HMRC,HMRC,18/09/2023,PROJECT Mandays Supp,Transformation DG & Programme Office,ACCENTURE (UK) LTD,5100036254,"190,782.00",PROJECT Mandays Supp,EC3M 3BD
HMRC,HMRC,18/09/2023,Rent (Irrec VAT),Estates,TELFORD PLAZA UK LTD,5100036260,"4,682.59",Rent (Irrec VAT),W8 5UA
HMRC,HMRC,18/09/2023,Rent (Irrec VAT),Estates,TELFORD PLAZA UK LTD,5100036260,"28,764.48",Rent (Irrec VAT),W8 5UA
HMRC,HMRC,18/09/2023,PROJECT Mandays Supp,CDIO Transformation Programmes,CAPGEMINI,5100036263,"46,490.32",PROJECT Mandays Supp,TF3 3BD
HMRC,HMRC,18/09/2023,PROJECT Mandays Supp,CDIO Transformation Programmes,CAPGEMINI,5100036264,"40,268.64",PROJECT Mandays Supp,TF3 3BD
HMRC,HMRC,18/09/2023,SW Lic Sup Off shlf,HMRC Security,COMPUTACENTER (UK) LTD,5100036265,"378,000.00",SW Lic Sup Off shlf,AL10 9TW
HMRC,HMRC,18/09/2023,SW Lic Sup Off shlf,CDIO - Core,SPECIALIST COMPUTER CTR,5100036267,"144,052.20",SW Lic Sup Off shlf,B11 2LE
HMRC,HMRC,18/09/2023,Consultancy � IT,Fraud Investigation Service,Amazon Web Services UK,5100036284,"38,705.32",Consultancy � IT,EC2A 2FA
HMRC,HMRC,19/09/2023,Contact Platform Ser,CDIO - Core,CAPITA CUSTOMER MANAGEMENT LTD,5100036300,"58,196.60",Contact Platform Ser,DL1 9HN
HMRC,HMRC,19/09/2023,PROJECT Mandays Supp,B&T Border Change Delivery,Automation Logic,5100036311,"138,407.00",Customs Declaration Service Contractor Costs,EC3V 1LP
HMRC,HMRC,19/09/2023,VOA,Wealthy & Mid-sized Business Compliance,VALUATION OFFICE AGENCY,5100036325,"200,000.00",Monthly payment to Valuation Office for Inheritance Tax and Capital Gains Tax Searches ,W1D 5BU
HMRC,HMRC,19/09/2023,PROJECT Mandays Supp,CDIO - Core,BRITISH TELECOMMUNICATIONS PLC,5100036346,"60,357.04",PROJECT Mandays Supp,E1 8EE
HMRC,HMRC,19/09/2023,PROJECT Mandays Supp,CDIO - Core,BRITISH TELECOMMUNICATIONS PLC,5100036349,"95,766.60",PROJECT Mandays Supp,E1 8EE
HMRC,HMRC,19/09/2023,Contin Labor Build,Risk & Intelligence,EQUAL EXPERTS UK LTD,5100036358,"110,747.00",Contin Labor Build,AL1 5HE
HMRC,HMRC,19/09/2023,PROJECT Mandays Supp,Transformation DG & Programme Office,COGNIZANT,5100036361,"56,814.00",PROJECT Mandays Supp,W2 6BD
HMRC,HMRC,19/09/2023,Research (VAT rec),Knowledge Analysis & Intelligence,IPSOS (market research) Ltd,5100036473,"26,600.00",Research Services ,SE1 1PY
HMRC,HMRC,19/09/2023,PROJECT Mandays Supp,CDIO - Core,EQUAL EXPERTS UK LTD,5100036485,"261,939.75",PROJECT Mandays Supp,AL1 5HE
HMRC,HMRC,19/09/2023,PROJECT Mandays Supp,CDIO - Core,EQUAL EXPERTS UK LTD,5100036491,"188,364.00",PROJECT Mandays Supp,AL1 5HE
HMRC,HMRC,19/09/2023,PROJECT Mandays Supp,CDIO - Core,EQUAL EXPERTS UK LTD,5100036495,"501,556.50",PROJECT Mandays Supp,AL1 5HE
HMRC,HMRC,19/09/2023,PROJECT Mandays Supp,CDIO - Core,EQUAL EXPERTS UK LTD,5100036496,"329,185.00",PROJECT Mandays Supp,AL1 5HE
HMRC,HMRC,19/09/2023,Vehicle servicing ma,Fraud Investigation Service,KINTO UK LIMITED,5100036524,"73,443.34",Vehicle servicing ma,PO6 3EN
HMRC,HMRC,19/09/2023,Contin Labor Build,CDIO Transformation Programmes,EQUAL EXPERTS UK LTD,5100036525,"25,521.60",Contin Labor Build,AL1 5HE
HMRC,HMRC,19/09/2023,Consultancy � IT,CDIO - Core,COGNIZANT,5100036526,"29,710.00",Consultancy � IT,W2 6BD
HMRC,HMRC,19/09/2023,Vehicle leasing,Fraud Investigation Service,KINTO UK LIMITED,5100036529,"82,831.58",Vehicle leasing,PO6 3EN
HMRC,HMRC,19/09/2023,PROJECT Mandays Supp,Transformation DG & Programme Office,CGI IT UK LTD,5100036551,"24,403.50",Project Development Mandays for Low Earners Anomaly,CF31 9AP
HMRC,HMRC,20/09/2023,SW Lic Sup Off shlf,CDIO - Core,COMPUTACENTER (UK) LTD,5100036556,"58,058.27",SW Lic Sup Off shlf,AL10 9TW
HMRC,HMRC,20/09/2023,PROJECT Mandays Supp,Transformation DG & Programme Office,CGI IT UK LTD,5100036563,"22,185.00",CGI 23/24 extension,CF31 9AP
HMRC,HMRC,20/09/2023,Cons COS 52 (Ir VAT),CDIO - Core,North Highland UK Limited,5100036567,"324,296.20",Cons COS 52 (Ir VAT),EC1N 2TD
HMRC,HMRC,20/09/2023,PROJECT Mandays Supp,CDIO - Core,EQUAL EXPERTS UK LTD,5100036570,"136,436.50",PROJECT Mandays Supp,AL1 5HE
HMRC,HMRC,20/09/2023,PROJECT Mandays Supp,Transformation HMRC Change Portfolio,CGI IT UK LTD,5100036575,"21,075.75",PROJECT Mandays Supp,CF31 9AP
HMRC,HMRC,20/09/2023,PROJECT Mandays Supp,CDIO Transformation Programmes,CAPGEMINI,5100036582,"59,138.33",PROJECT Mandays Supp,TF3 3BD
HMRC,HMRC,20/09/2023,PROJECT Mandays Supp,CDIO - Core,EQUAL EXPERTS UK LTD,5100036583,"28,807.51",PROJECT Mandays Supp,AL1 5HE
HMRC,HMRC,20/09/2023,Consultancy � IT,CDIO - Core,COGNIZANT,5100036588,"23,862.60",Consultancy � IT,W2 6BD
HMRC,HMRC,20/09/2023,Cons COS 52 (Ir VAT),Transformation DG & Programme Office,McKINSEY & COMPANY,5100036589,"792,000.00",Cons COS 52 (Ir VAT),WC1A 1PB
HMRC,HMRC,20/09/2023,Contin Labor Build,CDIO Transformation Programmes,EQUAL EXPERTS UK LTD,5100036590,"90,196.80",Contin Labor Build,AL1 5HE
HMRC,HMRC,20/09/2023,PROJECT Mandays Supp,Programme and Operational Delivery,CAPGEMINI,5100036591,"23,779.92",PROJECT Mandays Supp,TF3 3BD
HMRC,HMRC,20/09/2023,PROJECT Mandays Supp,Programme and Operational Delivery,CAPGEMINI,5100036592,"48,212.09",PROJECT Mandays Supp,TF3 3BD
HMRC,HMRC,20/09/2023,PROJECT Mandays Supp,Programme and Operational Delivery,CAPGEMINI,5100036592,"48,212.09",PROJECT Mandays Supp,TF3 3BD
HMRC,HMRC,20/09/2023,PROJECT Mandays Supp,Programme and Operational Delivery,CAPGEMINI,5100036592,"64,282.79",PROJECT Mandays Supp,TF3 3BD
HMRC,HMRC,20/09/2023,PROJECT Mandays Supp,B&T Border Change Delivery,CAPGEMINI,5100036592,"64,282.80",PROJECT Mandays Supp,TF3 3BD
HMRC,HMRC,20/09/2023,PROJECT Mandays Supp,Programme and Operational Delivery,CAPGEMINI,5100036592,"96,424.19",PROJECT Mandays Supp,TF3 3BD
HMRC,HMRC,20/09/2023,PROJECT Mandays HMRC,B&T Border Change Delivery,Amazon Web Services UK,5100036595,"28,515.60",PROJECT Mandays HMRC,EC2A 2FA
HMRC,HMRC,20/09/2023,PROJECT Mandays Supp,B&T Border Change Delivery,CAPGEMINI,5100036650,"59,672.26",Customs Declaration Service Contractor Costs,TF3 3BD
HMRC,HMRC,20/09/2023,PROJECT Mandays Supp,B&T Border Change Delivery,CAPGEMINI,5100036655,"606,700.33",Customs Declaration Service Contractor Costs,TF3 3BD
HMRC,HMRC,20/09/2023,Rent (Irrec VAT),Estates,Savills UK Ltd,5100036759,"19,002.62",Rent (Irrec VAT),W1G 0JD
HMRC,HMRC,20/09/2023,Rent (Irrec VAT),Estates,Savills UK Ltd,5100036759,"116,730.40",Rent (Irrec VAT),W1G 0JD
HMRC,HMRC,20/09/2023,SW Lic Sup Off shlf,Government Banking and Payments,Bottomline Technologies,5100036762,"72,004.20",Swift Service Bureau charges,GU51 2QJ
HMRC,HMRC,20/09/2023,Media Monitoring,HMRC Communications,NLA MEDIA ACCESS LTD,5100036800,"70,286.80",Media Monitoring,TN1 1HJ
HMRC,HMRC,20/09/2023,Rent (Irrec VAT),Estates,Jones Lang LaSalle Property Acc,5100036806,"50,400.00",Rent (Irrec VAT),E14 5WQ
HMRC,HMRC,20/09/2023,Rent (Irrec VAT),Estates,Jones Lang LaSalle Property Acc,5100036806,"309,600.00",Rent (Irrec VAT),E14 5WQ
HMRC,HMRC,20/09/2023,Contin Labor Build,B&T Border Change Delivery,CAPGEMINI,5100036832,"77,054.30",ETMP & EOPS structETMP & EOPS structure for ATWD,TF3 3BD
HMRC,HMRC,20/09/2023,PROJECT Mandays Supp,CDIO Transformation Programmes,EQUAL EXPERTS UK LTD,5100036838,"90,201.60",PROJECT Mandays Supp,AL1 5HE
HMRC,HMRC,21/09/2023,Other Non PFI Services VAT Recoverable,CDIO - Core,EOL IT SERVICES LTD,1900315889,"48,267.05",Other Non PFI Services VAT Recoverable,CM9 4LQ
HMRC,HMRC,21/09/2023,Virtual Hosting and Infrastructure,CDIO - Core,Amazon Web Services UK,1900315897,"48,560.86",Virtual Hosting and Infrastructure,EC2A 2FA
HMRC,HMRC,21/09/2023,Virtual Hosting and Infrastructure,CDIO - Core,Amazon Web Services UK,1900315898,"1,253,771.35",Virtual Hosting and Infrastructure,EC2A 2FA
HMRC,HMRC,21/09/2023,Virtual Hosting and Infrastructure,CDIO - Core,Amazon Web Services UK,1900315899,"156,507.78",Virtual Hosting and Infrastructure,EC2A 2FA
HMRC,HMRC,21/09/2023,Virtual Hosting and Infrastructure,CDIO - Core,Amazon Web Services UK,1900315911,"74,174.68",Virtual Hosting and Infrastructure,EC2A 2FA
HMRC,HMRC,21/09/2023,IT Software Licenses and Support,Fraud Investigation Service,NUIX TECHNOLOGY UK LTD,1900315945,"29,592.00",IT Software Licenses and Support,EC3A 7BB
HMRC,HMRC,21/09/2023,Contin Labor Build,Programme and Operational Delivery,EQUAL EXPERTS UK LTD,5100036856,"45,253.13",Contin Labor Build,AL1 5HE
HMRC,HMRC,21/09/2023,PROJECT Mandays Supp,CDIO - Core,CAPGEMINI,5100036861,"134,878.83",PROJECT Mandays Supp,TF3 3BD
HMRC,HMRC,21/09/2023,PROJECT Mandays Supp,CDIO - Core,CAPGEMINI,5100036863,"20,967.50",PROJECT Mandays Supp,TF3 3BD
HMRC,HMRC,21/09/2023,PROJECT Mandays Supp,CDIO - Core,CAPGEMINI,5100036865,"46,587.50",PROJECT Mandays Supp,TF3 3BD
HMRC,HMRC,21/09/2023,PROJECT Mandays Supp,CDIO - Core,CGI IT UK LTD,5100036881,"89,730.00",PROJECT Mandays Supp,CF31 9AP
HMRC,HMRC,21/09/2023,PROJECT Mandays Supp,CDIO - Core,CGI IT UK LTD,5100036882,"23,294.25",PROJECT Mandays Supp,CF31 9AP
HMRC,HMRC,21/09/2023,Disposal Seized Gds,Fraud Investigation Service,GXO LOGISTICS SERVICES UK LIMITED,5100036883,"53,545.10",Disposal Seized Gds,EH2 4DF
HMRC,HMRC,21/09/2023,Contin Labor Build,Programme and Operational Delivery,EQUAL EXPERTS UK LTD,5100036892,"49,464.75",Contin Labor Build,AL1 5HE
HMRC,HMRC,21/09/2023,PROJECT Mandays Supp,Programme and Operational Delivery,TECKNUOVO LTD,5100036895,"7,077.70",PROJECT Mandays Supp,N1 7GU
HMRC,HMRC,21/09/2023,PROJECT Mandays Supp,B&T Border Change Delivery,TECKNUOVO LTD,5100036895,"24,771.95",PROJECT Mandays Supp,N1 7GU
HMRC,HMRC,21/09/2023,PROJECT Mandays Supp,Programme and Operational Delivery,TECKNUOVO LTD,5100036895,"29,726.34",PROJECT Mandays Supp,N1 7GU
HMRC,HMRC,21/09/2023,PROJECT Mandays Supp,B&T Border Change Delivery,TECKNUOVO LTD,5100036895,"64,053.19",Customs Declaration Service Contractor Costs,N1 7GU
HMRC,HMRC,21/09/2023,PROJECT Mandays Supp,Programme and Operational Delivery,TECKNUOVO LTD,5100036895,"92,010.10",PROJECT Mandays Supp,N1 7GU
HMRC,HMRC,21/09/2023,PROJECT Mandays Supp,Programme and Operational Delivery,TECKNUOVO LTD,5100036895,"136,245.72",PROJECT Mandays Supp,N1 7GU
HMRC,HMRC,21/09/2023,Consultancy - Organi,Unity Business Services,ACCENTURE (UK) LTD,5100036900,"529,200.00",Strategic Consultancy Services,EC3M 3BD
HMRC,HMRC,21/09/2023,PROJECT Mandays Supp,CDIO Transformation Programmes,EQUAL EXPERTS UK LTD,5100036904,"68,617.85",PROJECT Mandays Supp,AL1 5HE
HMRC,HMRC,21/09/2023,Consultancy � IT,Transformation DG & Programme Office,COGNIZANT,5100036907,"89,735.00",Consultancy � IT,W2 6BD
HMRC,HMRC,21/09/2023,Rent (Irrec VAT),Estates,Spirit 120 Ltd,5100037073,"13,141.68",Rent (Irrec VAT),LE10 1QU
HMRC,HMRC,21/09/2023,Rent (Irrec VAT),Estates,Spirit 120 Ltd,5100037073,"80,727.42",Rent (Irrec VAT),LE10 1QU
HMRC,HMRC,21/09/2023,Training and tuition,CS Director General,CSL - KPMG LLP,5100037090,"117,668.33",Training and tuition,E14 5GL
HMRC,HMRC,21/09/2023,Computer accessories,CDIO - Core,COMPUTACENTER (UK) LTD,5100037110,"369,060.00",Computer accessories,AL10 9TW
HMRC,HMRC,21/09/2023,PROJECT Mandays Supp,CDIO Transformation Programmes,ATOS IT SERVICES UK LTD,5100037127,"21,928.83",PROJECT Mandays Supp,WC1V 6EA
HMRC,HMRC,21/09/2023,Soft Licen Integral,CDIO - Core,IMIMOBILE EUROPE LTD,5100037144,"33,569.00",Soft Licen Integral,EC1M 4BH
HMRC,HMRC,21/09/2023,Prop. Man. (Ir VAT),Estates,Workman Holding Account,5100037151,"53,510.10",Prop. Man. (Ir VAT),EC2V 6EE
HMRC,HMRC,21/09/2023,Prop. Man. (Ir VAT),Estates,Workman Holding Account,5100037151,"83,695.27",Prop. Man. (Ir VAT),EC2V 6EE
HMRC,HMRC,21/09/2023,Legal Ser. (ZR VAT),Solicitor's Office & Legal Services,CABINET OFFICE,5100037155,"512,545.00",Legal Services,FY1 9JN
HMRC,HMRC,21/09/2023,PROJECT Mandays Supp,Transformation DG & Programme Office,ECOSPEND TECHNOLOGIES LIMITED,5100037160,"79,309.00",PROJECT Mandays Supp,SW3 3LL
HMRC,HMRC,22/09/2023,Project Development,CDIO - Core,MADE TECH LTD,1900315974,"95,400.00",Project Development,EC2A 4NE
HMRC,HMRC,22/09/2023,Physical Hosting and Infrastructure,CDIO - Core,FUJITSU SERVICES LTD,1900316031,"588,798.49",Physical Hosting and Infrastructure,WA3 6GD
HMRC,HMRC,22/09/2023,Physical Hosting and Infrastructure,CDIO - Core,FUJITSU SERVICES LTD,1900316033,"39,631.27",Physical Hosting and Infrastructure,WA3 6GD
HMRC,HMRC,22/09/2023,Project Development,CDIO - Core,EQUAL EXPERTS UK LTD,1900316041,"497,508.50",Project Development,AL1 5HE
HMRC,HMRC,22/09/2023,Project Development,CDIO - Core,EQUAL EXPERTS UK LTD,1900316042,"644,811.00",Project Development,AL1 5HE
HMRC,HMRC,22/09/2023,PROJECT Mandays Supp,B&T Border Change Delivery,COGNIZANT,5100037173,"47,021.85",Customs Declaration Service Contractor Costs,W2 6BD
HMRC,HMRC,22/09/2023,Cons ad imp (Ir VAT),Finance Planning & Performance,ALEXANDER MANN SOLUTIONS LTD,5100037187,"108,000.00",Cons ad imp (Ir VAT),EC2N 3AQ
HMRC,HMRC,22/09/2023,PROJECT Mandays Supp,Transformation Making Tax Digital,CGI IT UK LTD,5100037189,"46,588.50",PROJECT Mandays Supp,CF31 9AP
HMRC,HMRC,22/09/2023,PROJECT Mandays Supp,Transformation DG & Programme Office,ACCENTURE (UK) LTD,5100037195,"169,130.77",PROJECT Mandays Supp,EC3M 3BD
HMRC,HMRC,22/09/2023,National postal ZVAT,Operational Excellence & Output Mgmt,Royal Mail Group Ltd,5100037339,441.01,National postal ZVAT,S49 1HQ
HMRC,HMRC,22/09/2023,National postal EVAT,Operational Excellence & Output Mgmt,Royal Mail Group Ltd,5100037339,"47,404.13",National postal EVAT,S49 1HQ
HMRC,HMRC,22/09/2023,Nat Pst Del Ser(VAT),Operational Excellence & Output Mgmt,Royal Mail Group Ltd,5100037339,"149,958.61",Nat Pst Del Ser(VAT),S49 1HQ
HMRC,HMRC,22/09/2023,Contin Labor Build,Transformation Making Tax Digital,EQUAL EXPERTS UK LTD,5100037340,"28,012.79",PROJECT Mandays HMRC,AL1 5HE
HMRC,HMRC,22/09/2023,Minor Wrks Irrec VAT,Estates,BAM CONSTRUCTION LTD,5100037342,"-36,923.63",Minor Wrks Irrec VAT,HP2 4FL
HMRC,HMRC,22/09/2023,Minor Wrks Irrec VAT,Estates,BAM CONSTRUCTION LTD,5100037342,"221,541.79",Minor Wrks Irrec VAT,HP2 4FL
HMRC,HMRC,22/09/2023,PROJECT Mandays HMRC,CDIO - Core,CAPGEMINI,5100037343,"28,764.77",PROJECT Mandays HMRC,TF3 3BD
HMRC,HMRC,22/09/2023,PROJECT Mandays Supp,Transformation DG & Programme Office,Atos Holding UK 1 Ltd,5100037355,"101,965.08",PROJECT Mandays Supp,WC1V 6EA
HMRC,HMRC,22/09/2023,Govt dept services,CDIO - Core,DVLA,5100037361,"-24,168.99",Govt dept services,SA6 7JL
HMRC,HMRC,22/09/2023,Govt dept services,CDIO - Core,DVLA,5100037361,"145,013.91",Govt dept services,SA6 7JL
HMRC,HMRC,22/09/2023,PROJECT Mandays Supp,CDIO - Core,EQUAL EXPERTS UK LTD,5100037363,"259,053.00",PROJECT Mandays Supp,AL1 5HE
HMRC,HMRC,22/09/2023,Govt dept services,CDIO - Core,DVLA,5100037364,"-37,975.78",Govt dept services,SA6 7JL
HMRC,HMRC,22/09/2023,Govt dept services,CDIO - Core,DVLA,5100037364,"227,854.70",Govt dept services,SA6 7JL
HMRC,HMRC,22/09/2023,Govt dept services,CDIO - Core,DVLA,5100037366,"-29,828.00",Govt dept services,SA6 7JL
HMRC,HMRC,22/09/2023,Govt dept services,CDIO - Core,DVLA,5100037366,"178,968.04",Govt dept services,SA6 7JL
HMRC,HMRC,22/09/2023,Training and tuition,B&T DG Finance & Risk,ERNST & YOUNG LLP,5100037375,"24,000.00",Staff Training,SE1 2AF
HMRC,HMRC,22/09/2023,Sol's Enforcement,Operational Excellence & Output Mgmt,PINSENT MASONS SOLICITORS,5100037385,"68,415.60",Sol's Enforcement,EC2A 4ES
HMRC,HMRC,25/09/2023,PROJECT Mandays Supp,CDIO - Core,CAPGEMINI,5100037415,"146,759.24",PROJECT Mandays Supp,TF3 3BD
HMRC,HMRC,25/09/2023,Contin Labor Build,Transformation Making Tax Digital,Atos Holding UK 1 Ltd,5100037426,"310,775.50",PROJECT Mandays Supp,WC1V 6EA
HMRC,HMRC,25/09/2023,Contin Labor Build,Transformation Making Tax Digital,Atos Holding UK 1 Ltd,5100037426,"541,290.52",PROJECT Mandays HMRC,WC1V 6EA
HMRC,HMRC,25/09/2023,PROJECT Mandays Supp,B&T Border Change Delivery,SPECIALIST COMPUTER CTR,5100037429,"878,823.61",Customs Declaration Service Contractor Costs,B11 2LE
HMRC,HMRC,25/09/2023,PROJECT Mandays Supp,B&T Border Change Delivery,CGI IT UK LTD,5100037431,"22,185.00",PROJECT Mandays Supp,CF31 9AP
HMRC,HMRC,25/09/2023,Contin Labor Build,B&T Border Change Delivery,EQUAL EXPERTS UK LTD,5100037434,"32,122.12",Contin Labor Build,AL1 5HE
HMRC,HMRC,25/09/2023,Contin Labor Build,CDIO - Core,EQUAL EXPERTS UK LTD,5100037436,"42,432.00",Contin Labor Build,AL1 5HE
HMRC,HMRC,25/09/2023,Contin Labor Build,CDIO Transformation Programmes,EQUAL EXPERTS UK LTD,5100037437,"72,783.00",Contin Labor Build,AL1 5HE
HMRC,HMRC,25/09/2023,Furniture & Fixtures,Estates,L & L BRAINES LIMITED,5100037438,"2,378.03",Furniture & Fixtures,SR4 7BG
HMRC,HMRC,25/09/2023,CHURN,Estates,L & L BRAINES LIMITED,5100037438,"27,668.39",Minor works,SR4 7BG
HMRC,HMRC,25/09/2023,PROJECT Mandays Supp,CDIO - Core,CGI IT UK LTD,5100037619,"61,974.90",PROJECT Mandays Supp,CF31 9AP
HMRC,HMRC,25/09/2023,Rent (Irrec VAT),Estates,Savills UK Ltd,5100037627,"93,967.27",Rent (Irrec VAT),W1G 0JD
HMRC,HMRC,25/09/2023,Rent (Irrec VAT),Estates,Savills UK Ltd,5100037627,"577,227.53",Rent (Irrec VAT),W1G 0JD
HMRC,HMRC,25/09/2023,Prop. Man. (Ir VAT),Estates,CBRE Limited,5100037631,"15,321.96",Prop. Man. (Ir VAT),EC4M 7HP
HMRC,HMRC,25/09/2023,Prop. Man. (Ir VAT),Estates,CBRE Limited,5100037631,"41,426.04",Prop. Man. (Ir VAT),EC4M 7HP
HMRC,HMRC,25/09/2023,GovDept Serv(VAT Ex),Risk & Intelligence,FOREIGN COMMONWEALTH & DEVELOPMENT,5100037637,"44,491.90",GovDept Serv(VAT Ex),G75 8EA
HMRC,HMRC,25/09/2023,Consultancy � IT,CDIO - Core,COGNIZANT,5100037639,"22,672.00",Consultancy � IT,W2 6BD
HMRC,HMRC,25/09/2023,GovDept Serv(VAT Ex),Risk & Intelligence,FOREIGN COMMONWEALTH & DEVELOPMENT,5100037641,"55,497.89",GovDept Serv(VAT Ex),G75 8EA
HMRC,HMRC,25/09/2023,SW Lic Sup mngd Serv,CDIO - Core,COMPUTACENTER (UK) LTD,5100037646,"73,808.14",SW Lic Sup mngd Serv,AL10 9TW
HMRC,HMRC,25/09/2023,SW Lic Sup Off shlf,CDIO - Core,SPECIALIST COMPUTER CTR,5100037647,"127,680.00",SW Lic Sup Off shlf,B11 2LE
HMRC,HMRC,25/09/2023,Consultancy - P&C,Estates,AECOM LTD,5100037656,"47,300.00",Consultancy - P&C,G2 7ER
HMRC,HMRC,25/09/2023,Project support,CDIO Transformation Programmes,COMPUTACENTER (UK) LTD,5100037675,"34,046.69",Project support,AL10 9TW
HMRC,HMRC,25/09/2023,PROJECT Mandays Supp,CDIO - Core,CGI IT UK LTD,5100037690,"27,506.00",PROJECT Mandays Supp,CF31 9AP
HMRC,HMRC,26/09/2023,Tribunal appellant costs,Solicitor's Office & Legal Services,NWM Solutions Ltd c/o David Kirk & Co Ltd,1900318280,"65,000.00",Costs awarded against department,CW2 5DF
HMRC,HMRC,26/09/2023,Project Development,CDIO - Core,EQUAL EXPERTS UK LTD,1900318286,"487,924.00",Project Development,AL1 5HE
HMRC,HMRC,26/09/2023,Scanning Services,Operational Excellence & Output Mgmt,RESTORE DIGITAL LTD,1900318293,"396,983.45",Scanning Services,WV14 0UJ
HMRC,HMRC,26/09/2023,Telephony Services,CDIO - Core,GAMMA TELECOM LTD,1900323536,"134,172.80",Telephony Services,RG14 5BY
HMRC,HMRC,26/09/2023,Contin Labor Build,Programme and Operational Delivery,COGNIZANT,5100037708,"170,302.50",Contin Labor Build,W2 6BD
HMRC,HMRC,26/09/2023,Employee education,Fraud Investigation Service,CSL - KPMG LLP,5100037720,"37,296.00",Employee education,E14 5GL
HMRC,HMRC,26/09/2023,Cons ad imp (Ir VAT),Transformation DG & Programme Office,ERNST & YOUNG LLP,5100037729,"851,869.73",Cons ad imp (Ir VAT),SE1 2AF
HMRC,HMRC,26/09/2023,PROJECT Mandays Supp,CDIO - Core,EQUAL EXPERTS UK LTD,5100037742,"640,937.50",PROJECT Mandays Supp,AL1 5HE
HMRC,HMRC,26/09/2023,Consultancy � IT,CDIO - Core,COGNIZANT,5100037750,"219,241.50",Consultancy � IT,W2 6BD
HMRC,HMRC,26/09/2023,PROJECT Mandays Supp,CDIO Transformation Programmes,CGI IT UK LTD,5100037768,"23,294.25",PROJECT Mandays Supp,CF31 9AP
HMRC,HMRC,26/09/2023,PROJECT Mandays Supp,CDIO Transformation Programmes,CGI IT UK LTD,5100037769,"82,570.70",PROJECT Mandays Supp,CF31 9AP
HMRC,HMRC,26/09/2023,Facility rental,Estates,PORTSMOUTH CITY COUNCIL,5100037953,"18,900.00",Facility rental,PO1 2BE
HMRC,HMRC,26/09/2023,Facility rental,Estates,PORTSMOUTH CITY COUNCIL,5100037953,"116,100.00",Facility rental,PO1 2BE
HMRC,HMRC,26/09/2023,Prop. Man. (Ir VAT),Estates,Workman Holding Account,5100037984,"2,535.53",Prop. Man. (Ir VAT),EC2V 6EE
HMRC,HMRC,26/09/2023,Prop. Man. (Ir VAT),Estates,Workman Holding Account,5100037984,"29,158.57",Prop. Man. (Ir VAT),EC2V 6EE
HMRC,HMRC,26/09/2023,Rent (Irrec VAT),Estates,CBRE Limited,5100037991,"4,924.50",Rent (Irrec VAT),EC4M 7HP
HMRC,HMRC,26/09/2023,Rent (Irrec VAT),Estates,CBRE Limited,5100037991,"30,250.50",Rent (Irrec VAT),EC4M 7HP
HMRC,HMRC,26/09/2023,Prop. Man. (Ir VAT),Estates,Workman Holding Account,5100038020,"3,193.44",Prop. Man. (Ir VAT),EC2V 6EE
HMRC,HMRC,26/09/2023,Prop. Man. (Ir VAT),Estates,Workman Holding Account,5100038020,"60,675.36",Prop. Man. (Ir VAT),EC2V 6EE
HMRC,HMRC,26/09/2023,Security printing,Indirect Tax Directorate,COMMUNISIS UK LTD,5100038038,"53,154.53",Security printing,LS15 8AH
HMRC,HMRC,26/09/2023,PROJECT Mandays Supp,B&T Border Change Delivery,CAPGEMINI,5100038039,"241,657.27",Customs Declaration Service Contractor Costs,TF3 3BD
HMRC,HMRC,26/09/2023,Employee education,HR,CSL - KPMG LLP,5100038064,"22,720.00",Employee education,E14 5GL
HMRC,HMRC,26/09/2023,Employee education,HR,CSL - KPMG LLP,5100038065,"22,720.00",Employee education,E14 5GL
HMRC,HMRC,26/09/2023,Employee education,HR,CSL - KPMG LLP,5100038066,"22,720.00",Employee education,E14 5GL
HMRC,HMRC,26/09/2023,Employee education,HR,CSL - KPMG LLP,5100038067,"22,720.00",Employee education,E14 5GL
HMRC,HMRC,26/09/2023,PROJECT Mandays Supp,CDIO - Core,COGNIZANT,5100038070,"996,097.04",PROJECT Mandays Supp,W2 6BD
HMRC,HMRC,26/09/2023,PROJECT Mandays Supp,CDIO - Core,CGI IT UK LTD,5100038071,"21,034.41",PROJECT Mandays Supp,CF31 9AP
HMRC,HMRC,26/09/2023,PROJECT Mandays Supp,Transformation DG & Programme Office,CGI IT UK LTD,5100038078,"24,403.50",PROJECT Mandays Supp,CF31 9AP
HMRC,HMRC,26/09/2023,PROJECT Mandays Supp,CCG Transformation Programmes,SAS SOFTWARE LTD,5100038079,"207,292.76",PROJECT Mandays Supp,SL7 2EB
HMRC,HMRC,26/09/2023,PROJECT Mandays Supp,Transformation DG & Programme Office,CAPGEMINI,5100038080,"65,150.83",PROJECT Mandays Supp,TF3 3BD
HMRC,HMRC,27/09/2023,Utility Payments - electricity,Estates,Inspired Energy plc,1900323619,"26,713.99",Utility Payments - electricity,PR4 2TZ
HMRC,HMRC,27/09/2023,Utility Payments - gas,Estates,Inspired Energy plc,1900323643,"55,605.82",Utility Payments - gas,PR4 2TZ
HMRC,HMRC,27/09/2023,Network Voice Serv,CDIO - Core,BRITISH TELECOMMUNICATIONS PLC,5100038102,"15,788.12",Network Voice Serv,E1 8EE
HMRC,HMRC,27/09/2023,WAN maint or supp,CDIO - Core,BRITISH TELECOMMUNICATIONS PLC,5100038102,"300,863.04",WAN maint or supp,E1 8EE
HMRC,HMRC,27/09/2023,PROJECT Mandays Supp,B&T Border Change Delivery,EQUAL EXPERTS UK LTD,5100038104,"37,172.75",Customs Declaration Service Contractor Costs,AL1 5HE
HMRC,HMRC,27/09/2023,Employee education,HR,CSL - KPMG LLP,5100038117,"22,720.00",Employee education,E14 5GL
HMRC,HMRC,27/09/2023,PROJECT Mandays HMRC,CDIO Transformation Programmes,North Highland UK Limited,5100038133,"1,079,631.36",PROJECT Mandays HMRC,EC1N 2TD
HMRC,HMRC,27/09/2023,Oth PFI unitary chrg,Estates,NEWCASTLE ESTATE PARTNERSHIP,5100038147,"1,335,859.82",Charges for accommodation provided under the Newcastle Private Finance Initiative contract,BS1 4DJ
HMRC,HMRC,27/09/2023,Oth PFI unitary chrg,Estates,NEWCASTLE ESTATE PARTNERSHIP,5100038147,"2,089,421.77",Charges for accommodation provided under the Newcastle Private Finance Initiative contract,BS1 4DJ
HMRC,HMRC,27/09/2023,Oth PFI unitary chrg,Estates,BOOTLE PFI SOLUTIONS 1998 (2) LTD,5100038149,"374,713.92",Charges for accommodation provided under the Bootle Private Finance Initiative contract,SE1 9RA
HMRC,HMRC,27/09/2023,Oth PFI unitary chrg,Estates,BOOTLE PFI SOLUTIONS 1998 (2) LTD,5100038149,"760,782.81",Charges for accommodation provided under the Bootle Private Finance Initiative contract,SE1 9RA
HMRC,HMRC,27/09/2023,Soft Licen Off shelf,CDIO Transformation Programmes,CAM MANAGEMENT SOLUTIONS LTD,5100038152,"30,000.00",Soft Licen Off shelf,M3 2HW
HMRC,HMRC,27/09/2023,PROJECT Mandays HMRC,CDIO Transformation Programmes,CAPGEMINI,5100038158,"438,591.84",PROJECT Mandays HMRC,TF3 3BD
HMRC,HMRC,27/09/2023,PROJECT Mandays Supp,Transformation DG & Programme Office,DELOITTE LLP (L),5100038160,"1,090,285.00",PROJECT Mandays Supp,MK9 1FD
HMRC,HMRC,27/09/2023,PROJECT Mandays Supp,Programme and Operational Delivery,Atos Holding UK 1 Ltd,5100038165,"151,082.00",PROJECT Mandays Supp,WC1V 6EA
HMRC,HMRC,27/09/2023,Project support,CDIO Transformation Programmes,COMPUTACENTER (UK) LTD,5100038168,"37,446.68",Project support,AL10 9TW
HMRC,HMRC,27/09/2023,PROJECT Mandays Supp,CDIO Transformation Programmes,CAPGEMINI,5100038169,"21,114.33",PROJECT Mandays Supp,TF3 3BD
HMRC,HMRC,27/09/2023,PROJECT Mandays Supp,Transformation DG & Programme Office,ATOS IT SERVICES UK LTD,5100038171,"32,027.11",Atos SIT and E2E test execution activities May - Jul 23,WC1V 6EA
HMRC,HMRC,27/09/2023,PROJECT Mandays Supp,B&T Border Change Delivery,CAPGEMINI,5100038253,"383,968.84",Customs Declaration Service Contractor Costs,TF3 3BD
HMRC,HMRC,27/09/2023,PROJECT Mandays Supp,B&T Border Change Delivery,CAPGEMINI,5100038254,"154,083.41",Customs Declaration Service Contractor Costs,TF3 3BD
HMRC,HMRC,27/09/2023,PROJECT Mandays Supp,B&T Border Change Delivery,CAPGEMINI,5100038255,"257,395.90",Customs Declaration Service Contractor Costs,TF3 3BD
HMRC,HMRC,27/09/2023,PROJECT Mandays Supp,CDIO - Core,TECKNUOVO LTD,5100038280,"266,224.00",PROJECT Mandays Supp,N1 7GU
HMRC,HMRC,27/09/2023,PROJECT Mandays Supp,CDIO - Core,Mastek UK Ltd,5100038281,"824,455.00",PROJECT Mandays Supp,RG1 8BW
HMRC,HMRC,27/09/2023,Project support,CDIO Transformation Programmes,ENGAGE ESM LTD,5100038357,"107,583.92",Project support,WC1V 6EA
HMRC,HMRC,27/09/2023,Rent (Irrec VAT),Estates,Astral Towers Ltd,5100038358,"55,418.26",Rent (Irrec VAT),W1J 6ER
HMRC,HMRC,27/09/2023,Rent (Irrec VAT),Estates,Astral Towers Ltd,5100038358,"340,426.46",Rent (Irrec VAT),W1J 6ER
HMRC,HMRC,27/09/2023,Soft Licen Integral,HMRC Security,BOXXE LTD,5100038359,"36,752.52",Soft Licen Integral,YO31 7RE
HMRC,HMRC,27/09/2023,Soft Licen Integral,HMRC Security,BOXXE LTD,5100038359,"183,762.62",Soft Licen Integral,YO31 7RE
HMRC,HMRC,27/09/2023,Grant in Aid Funding,Intermediaries,GINGERBREAD,5100038361,"42,604.10",Grant in Aid Funding,NW5 3AQ
HMRC,HMRC,27/09/2023,Grant in Aid Funding,Intermediaries,ADVICE NI LTD,5100038365,"27,111.70",Grant in Aid Funding,BT7 3FP
HMRC,HMRC,27/09/2023,Grant in Aid Funding,Intermediaries,GOOD THINGS FOUNDATION,5100038367,"80,228.50",Grant in Aid Funding,S1 2ET
HMRC,HMRC,27/09/2023,Research (VAT rec),Knowledge Analysis & Intelligence,BMG Research,5100038368,"21,487.50",Research Services ,B15 3BE
HMRC,HMRC,27/09/2023,PROJECT Mandays Supp,CCG Transformation Programmes,CAPGEMINI,5100038379,"910,872.34",PROJECT Mandays Supp,TF3 3BD
HMRC,HMRC,27/09/2023,PROJECT Mandays Supp,CDIO - Core,CGI IT UK LTD,5100038380,"49,292.25",PROJECT Mandays Supp,CF31 9AP
HMRC,HMRC,27/09/2023,PROJECT Mandays Supp,CDIO - Core,CGI IT UK LTD,5100038391,"66,000.38",PROJECT Mandays Supp,CF31 9AP
HMRC,HMRC,27/09/2023,Employee education,Strategic Policy Into Delivery,ERNST & YOUNG LLP,5100038395,"29,479.50",Employee education,SE1 2AF
HMRC,HMRC,27/09/2023,Virtual Hosting,CDIO - Core,IBM UNITED KINGDOM LTD,5100038399,"3,705,484.80",Virtual Hosting,SE1 9PZ
HMRC,HMRC,27/09/2023,PROJECT Mandays Supp,Transformation DG & Programme Office,COGNIZANT,5100038406,"56,814.00",PROJECT Mandays Supp,W2 6BD
HMRC,HMRC,28/09/2023,PROJECT Mandays Supp,CDIO - Core,RED HAT LTD,5100038119,"36,691.57",PROJECT Mandays Supp,.
HMRC,HMRC,28/09/2023,PROJECT Mandays Supp,CDIO - Core,RED HAT LTD,5100038123,"35,736.06",PROJECT Mandays Supp,.
HMRC,HMRC,28/09/2023,Employee education,HR,CSL - KPMG LLP,5100038414,"22,720.00",Employee education,E14 5GL
HMRC,HMRC,28/09/2023,Employee education,HR,CSL - KPMG LLP,5100038419,"27,006.00",Employee education,E14 5GL
HMRC,HMRC,28/09/2023,Employee education,HR,CSL - KPMG LLP,5100038420,"49,949.50",Employee education,E14 5GL
HMRC,HMRC,28/09/2023,PROJECT Mandays Supp,CCG Transformation Programmes,CAPGEMINI,5100038422,"171,600.92",PROJECT Mandays Supp,TF3 3BD
HMRC,HMRC,28/09/2023,PROJECT Mandays Supp,Indirect Tax Directorate,STREEVA LTD,5100038423,"150,293.75",PROJECT Mandays Supp,TR27 5EX
HMRC,HMRC,28/09/2023,PROJECT Mandays Supp,CCG Transformation Programmes,CAPGEMINI,5100038424,"21,471.69",PROJECT Mandays Supp,TF3 3BD
HMRC,HMRC,28/09/2023,PROJECT Mandays HMRC,Transformation DG & Programme Office,COGNIZANT,5100038435,"110,670.00",Pega Cognizant SOW COG-0003 for CDCS Q2 23-24 resources,W2 6BD
HMRC,HMRC,28/09/2023,FIS Spec Req - Res,Fraud Investigation Service,IBM UNITED KINGDOM LTD,5100038437,"154,284.00",FIS Spec Req - Res,SE1 9PZ
HMRC,HMRC,28/09/2023,PROJECT Mandays Supp,Programme and Operational Delivery,CGI IT UK LTD,5100038438,"24,403.50",PROJECT Mandays Supp,CF31 9AP
HMRC,HMRC,28/09/2023,Consultancy - Learni,HR,CSL - KPMG LLP,5100038596,"35,000.00",Consultancy - Learni,E14 5GL
HMRC,HMRC,28/09/2023,Research (VAT rec),Knowledge Analysis & Intelligence,IPSOS (market research) Ltd,5100038599,"72,125.00",Research Services ,SE1 1PY
HMRC,HMRC,28/09/2023,PROJECT Mandays Supp,Programme and Operational Delivery,COGNIZANT,5100038600,"38,391.18",PROJECT Mandays Supp,W2 6BD
HMRC,HMRC,28/09/2023,PROJECT Mandays Supp,Programme and Operational Delivery,COGNIZANT,5100038601,"86,380.14",PROJECT Mandays Supp,W2 6BD
HMRC,HMRC,28/09/2023,PROJECT Mandays Supp,Transformation DG & Programme Office,COGNIZANT,5100038603,"56,814.00",PROJECT Mandays Supp,W2 6BD
HMRC,HMRC,28/09/2023,Consultancy � IT,CCG Transformation Programmes,BUTTERFLY PROJECTS LTD,5100038608,"36,875.50",Consultancy � IT,CF83 3GG
HMRC,HMRC,28/09/2023,PROJECT Mandays Supp,B&T Border Change Delivery,ACCENTURE (UK) LTD,5100038614,"2,280.54",Customs Declaration Service Contractor Costs,EC3M 3BD
HMRC,HMRC,28/09/2023,PROJECT Mandays Supp,B&T Border Change Delivery,ACCENTURE (UK) LTD,5100038614,"267,089.67",Customs Declaration Service Contractor Costs,EC3M 3BD
HMRC,HMRC,28/09/2023,PROJECT Mandays Supp,B&T Border Change Delivery,ACCENTURE (UK) LTD,5100038615,"390,139.33",Customs Declaration Service Contractor Costs,EC3M 3BD
HMRC,HMRC,28/09/2023,PROJECT Mandays Supp,B&T Border Change Delivery,ACCENTURE (UK) LTD,5100038616,860.25,Customs Declaration Service Contractor Costs,EC3M 3BD
HMRC,HMRC,28/09/2023,PROJECT Mandays Supp,B&T Border Change Delivery,ACCENTURE (UK) LTD,5100038616,"260,750.00",Customs Declaration Service Contractor Costs,EC3M 3BD
HMRC,HMRC,28/09/2023,PROJECT Mandays Supp,B&T Border Change Delivery,ACCENTURE (UK) LTD,5100038617,"254,260.00",Customs Declaration Service Contractor Costs,EC3M 3BD
HMRC,HMRC,29/09/2023,Accommodation Security Services,Estates,Mitie Limited,1900323899,"62,920.12",Accommodation Security Services,SE1 9SG
HMRC,HMRC,29/09/2023,Accommodation Security Services,Estates,Mitie Limited,1900323900,"78,497.92",Accommodation Security Services,SE1 9SG
HMRC,HMRC,29/09/2023,Accommodation Security Services,Estates,Mitie Limited,1900323902,"23,922.60",Accommodation Security Services,SE1 9SG
HMRC,HMRC,29/09/2023,Accommodation Security Services,Estates,Mitie Limited,1900323905,"73,973.53",Accommodation Security Services,SE1 9SG
HMRC,HMRC,29/09/2023,Accommodation Security Services,Estates,Mitie Limited,1900323909,"53,485.47",Accommodation Security Services,SE1 9SG
HMRC,HMRC,29/09/2023,Accommodation Security Services,Estates,Mitie Limited,1900323913,"65,661.01",Accommodation Security Services,SE1 9SG
HMRC,HMRC,29/09/2023,Accommodation Security Services,Estates,Mitie Limited,1900323917,"35,161.32",Accommodation Security Services,SE1 9SG
HMRC,HMRC,29/09/2023,Accommodation Security Services,Estates,Mitie Limited,1900323919,"26,779.17",Accommodation Security Services,SE1 9SG
HMRC,HMRC,29/09/2023,Accommodation Security Services,Estates,Mitie Limited,1900323921,"45,982.01",Accommodation Security Services,SE1 9SG
HMRC,HMRC,29/09/2023,Accommodation Security Services,Estates,Mitie Limited,1900323924,"85,511.04",Accommodation Security Services,SE1 9SG
HMRC,HMRC,29/09/2023,Accommodation Security Services,Estates,Mitie Limited,1900323925,"89,213.28",Accommodation Security Services,SE1 9SG
HMRC,HMRC,29/09/2023,Accommodation Security Services,Estates,Mitie Limited,1900323927,"23,966.15",Accommodation Security Services,SE1 9SG
HMRC,HMRC,29/09/2023,Accommodation Security Services,Estates,Mitie Limited,1900323929,"69,092.57",Accommodation Security Services,SE1 9SG
HMRC,HMRC,29/09/2023,Accommodation Security Services,Estates,Mitie Limited,1900323930,"53,223.08",Accommodation Security Services,SE1 9SG
HMRC,HMRC,29/09/2023,Accommodation Security Services,Estates,Mitie Limited,1900323931,"30,656.49",Accommodation Security Services,SE1 9SG
HMRC,HMRC,29/09/2023,Accommodation Security Services,Estates,Mitie Limited,1900323932,"24,841.43",Accommodation Security Services,SE1 9SG
HMRC,HMRC,29/09/2023,Accommodation Security Services,Estates,Mitie Limited,1900323936,"40,335.34",Accommodation Security Services,SE1 9SG
HMRC,HMRC,29/09/2023,Accommodation Security Services,Estates,Mitie Limited,1900323938,"40,999.84",Accommodation Security Services,SE1 9SG
HMRC,HMRC,29/09/2023,Project Development,CDIO - Core,Atos Holding UK 1 Ltd,1900323941,"4,908,192.67",Project Development,WC1V 6EA
HMRC,HMRC,29/09/2023,Accommodation Security Services,Estates,Mitie Limited,1900323944,"78,171.66",Accommodation Security Services,SE1 9SG
HMRC,HMRC,29/09/2023,SW Lic Sup mngd Serv,CDIO - Core,INSIGHT DIRECT (UK) LTD,5100038632,"129,398.10",SW Lic Sup mngd Serv,S9 2BU
HMRC,HMRC,29/09/2023,PROJECT Mandays Supp,CDIO Transformation Programmes,IBM UNITED KINGDOM LTD,5100038647,"510,165.00",PROJECT Mandays Supp,SE1 9PZ
HMRC,HMRC,29/09/2023,Radio ancillaries,Fraud Investigation Service,SEPURA LTD,5100038649,"26,520.00",Radio ancillaries,CB25 9TL
HMRC,HMRC,29/09/2023,PROJECT Mandays Supp,B&T Border Change Delivery,ACCENTURE (UK) LTD,5100038653,779.19,Customs Declaration Service Contractor Costs,EC3M 3BD
HMRC,HMRC,29/09/2023,PROJECT Mandays Supp,B&T Border Change Delivery,ACCENTURE (UK) LTD,5100038653,"427,982.67",Customs Declaration Service Contractor Costs,EC3M 3BD
HMRC,HMRC,29/09/2023,Contin Labor Build,Programme and Operational Delivery,EQUAL EXPERTS UK LTD,5100038657,"58,507.80",Contin Labor Build,AL1 5HE
HMRC,HMRC,29/09/2023,PROJECT Mandays Supp,Programme and Operational Delivery,Atos Holding UK 1 Ltd,5100038696,"25,142.50",PROJECT Mandays Supp,WC1V 6EA
HMRC,HMRC,29/09/2023,Rent (Irrec VAT),Estates,Astral Towers Ltd,5100038705,"54,882.73",Rent (Irrec VAT),W1J 6ER
HMRC,HMRC,29/09/2023,Rent (Irrec VAT),Estates,Astral Towers Ltd,5100038705,"337,136.76",Rent (Irrec VAT),W1J 6ER
HMRC,HMRC,29/09/2023,Facilities Mngmnt,Estates,SERVEST GROUP LTD,5100038706,"41,937.26",Facilities Mngmnt,IP28 6LG
HMRC,HMRC,29/09/2023,Facilities Mngmnt,Estates,SERVEST GROUP LTD,5100038706,"257,614.66",Facilities Mngmnt,IP28 6LG
HMRC,HMRC,29/09/2023,PROJECT Mandays Supp,Transformation DG & Programme Office,CAPGEMINI,5100038708,"23,161.57",PROJECT Mandays Supp,TF3 3BD
HMRC,HMRC,29/09/2023,Min AW non-struc VAT,Estates,Wates Property Services Ltd,5100038712,"75,795.77",Min AW non-struc VAT,EN1 3XA
HMRC,HMRC,29/09/2023,Grant in Aid Funding,Fraud Investigation Service,Chartered Trading Standards,5100038844,"200,000.00",Grant in Aid Funding,SS15 6TH
HMRC,HMRC,29/09/2023,SW Lic Sup mngd Serv,CDIO - Core,Phoenix Software,5100038846,"30,671.79",SW Lic Sup mngd Serv,YO42 1NS
HMRC,HMRC,29/09/2023,PROJECT Mandays Supp,CDIO Transformation Programmes,Atos Holding UK 1 Ltd,5100038861,"34,817.50",PROJECT Mandays Supp,WC1V 6EA
